{"text_format":"1","workbook":"xlsx","n_sheets":22,"sheets":["-38","-42","-46","-50","-55","-60","-66","-73","-81","+81","-90","+90","-44","-48","-52","-57","-63","-70","+70","-78","+78","Parameters"],"not_rendered":{"charts":0,"images":3,"macros":1,"external_links":1,"defined_names":59,"comments":0,"pivot_tables":0},"unopened":[],"bounds":{"document_bytes":16777216,"sheet_cells":100000,"rows_first":2000,"rows_last":500,"rows_between":2000,"halvings":0,"cell_chars":16384,"cell_head_chars":4096},"cells_cut":0,"cells_raw":0,"read":"whole","date_system":"1900"}

{"sheet":"-38","index":0,"n_rows":37,"n_cols":33,"rows_kept":37,"cut":false,"hidden":false,"merged":[]}
[null,null,null,null,null,null,null,null,"CADETES"]
[null,null,null,null,null,null,null,null,"-38",null,null,"LISBOA","MADEIRA","AÇORES","NORTE","CENTRO-SUL","SUL","CENTRO","FPJ","PORTO","LISBOA","CASTELO BRANCO","COIMBRA","SETÚBAL","VIANA CASTELO","I.TERCEIRA","COIMBRA","SANTARÉM","LISBOA","MADEIRA","AÇORES","SETÚBAL","COIMBRA"]
[null,null,null,null,null,null,null,null,null,null,null,"2016-01-09","2016-01-16","2016-01-16","2016-01-16","2016-01-16","2016-01-16","2016-01-17","2016-01-31","2016-04-02","2016-04-09","2016-04-17","2016-04-30","2016-04-30","2016-06-18","2016-06-25","2016-06-26","2016-07-03","2016-10-22","2016-11-12","2016-11-19","2016-11-19","2016-12-17"]
["Género","Categoria",null,"LF",null,"NOME","Ano de Nascimento","Associação","CLUBE","Somatório de pontos","Número de provas","Camp. Zonal CADETES","Camp. Zonal CADETES","Camp. Zonal CADETES","Camp. Zonal CADETES","Camp. Zonal CADETES","Camp. Zonal CADETES","Camp. Zonal CADETES","Camp.Nac. Cadetes","OPEN CADETES","OPEN CADETES","OPEN MESTRE ANTONIO MORAIS","OPEN INT. CIDADE BARCELOS","OPEN MONTIJO CADETES","OPEN INT. CIDADE DE VALENÇA","TORNEIO DE SÃO JOÃO","TAÇA ANTONIO ALEIXO","OPEN INT. ADJ SANTARÉM","OPEN CADETES","OPEN CADETES","OPEN PONTA DELGADA","OPEN PRAGAL","OPEN CADETES"]
[]
["Masculino","-38",1,119490,{"$f":"COUNTIF(D:D,D6)","v":1},"Guilherme Gaspar",2002,"Coimbra","Associação Académica de Coimbra",{"$f":"SUM(L6:AP6)","v":6},{"$f":"COUNT(L6:AQ6)","v":1},null,null,null,null,null,null,null,null,null,null,null,null,null,null,null,null,null,null,null,null,null,6]
["Masculino","-38",2,145111,1,"Gustavo Guerreiro",2001,"Algarve","Academia Chushin Associação",1,1,null,null,null,null,null,1]
["Masculino","-38",3,130632,1,"Francisco Santos",2002,"Coimbra","Montanha Clube",1,1,null,null,null,null,null,null,null,null,null,null,null,null,null,null,null,null,null,null,null,null,null,1]
["Masculino","-38",4,null,0,null,null,null,null,0,0]
["Masculino","-38",5,null,0,null,null,null,null,0,0]
["Masculino","-38",6,null,0,null,null,null,null,0,0]
["Masculino","-38",7,null,0,null,null,null,null,0,0]
["Masculino","-38",8,null,0,null,null,null,null,0,0]
["Masculino","-38",9,null,0,null,null,null,null,0,0]
["Masculino","-38",10,null,0,null,null,null,null,0,0]
["Masculino","-38",11,null,0,null,null,null,null,0,0]
["Masculino","-38",12,null,0,null,null,null,null,0,0]
["Masculino","-38",13,null,0,null,null,null,null,0,0]
["Masculino","-38",14,null,0,null,null,null,null,0,0]
["Masculino","-38",15,null,0,null,null,null,null,0,0]
["Masculino","-38",16,null,0,null,null,null,null,0,0]
["Masculino","-38",17,null,0,null,null,null,null,0,0]
["Masculino","-38",18,null,0,null,null,null,null,0,0]
["Masculino","-38",19,null,0,null,null,null,null,0,0]
["Masculino","-38",20,null,0,null,null,null,null,0,0]
["Masculino","-38",21,null,0,null,null,null,null,0,0]
["Masculino","-38",22,null,0,null,null,null,null,0,0]
["Masculino","-38",23,null,0,null,null,null,null,0,0]
["Masculino","-38",24,null,0,null,null,null,null,0,0]
["Masculino","-38",25,null,0,null,null,null,null,0,0]
["Masculino","-38",26,null,0,null,null,null,null,0,0]
["Masculino","-38",27,null,0,null,null,null,null,0,0]
["Masculino","-38",28,null,0,null,null,null,null,0,0]
["Masculino","-38",29,null,0,null,null,null,null,0,0]
["Masculino","-38",30,null,0,null,null,null,null,0,0]
["Masculino","-38",31,null,0,null,null,null,null,0,0]
["Masculino","-38",32,null,0,null,null,null,null,0,0]

{"sheet":"-42","index":1,"n_rows":37,"n_cols":33,"rows_kept":37,"cut":false,"hidden":false,"merged":[]}
[null,null,null,null,null,null,null,null,"CADETES"]
[null,null,null,null,null,null,null,null,"-42",null,null,"LISBOA","MADEIRA","AÇORES","NORTE","CENTRO-SUL","SUL","CENTRO","FPJ","PORTO","LISBOA","CASTELO BRANCO","COIMBRA","SETÚBAL","VIANA CASTELO","I.TERCEIRA","COIMBRA","SANTARÉM","LISBOA","MADEIRA","AÇORES","SETÚBAL","COIMBRA"]
[null,null,null,null,null,null,null,null,null,null,null,"2016-01-09","2016-01-16","2016-01-16","2016-01-16","2016-01-16","2016-01-16","2016-01-17","2016-01-31","2016-04-02","2016-04-09","2016-04-17","2016-04-30","2016-04-30","2016-06-18","2016-06-25","2016-06-26","2016-07-03","2016-10-22","2016-11-12","2016-11-19","2016-11-19","2016-12-17"]
["Género","Categoria",null,"LF",null,"NOME","Ano de Nascimento","Associação","CLUBE","Somatório de pontos","Número de provas","Camp. Zonal CADETES","Camp. Zonal CADETES","Camp. Zonal CADETES","Camp. Zonal CADETES","Camp. Zonal CADETES","Camp. Zonal CADETES","Camp. Zonal CADETES","Camp.Nac. Cadetes","OPEN CADETES","OPEN CADETES","OPEN MESTRE ANTONIO MORAIS","OPEN INT. CIDADE BARCELOS","OPEN MONTIJO CADETES","OPEN INT. CIDADE DE VALENÇA","TORNEIO DE SÃO JOÃO","TAÇA ANTONIO ALEIXO","OPEN INT. ADJ SANTARÉM","OPEN CADETES","OPEN CADETES","OPEN PONTA DELGADA","OPEN PRAGAL","OPEN CADETES"]
[]
["Masculino","-42",1,145111,{"$f":"COUNTIF(D:D,D6)","v":1},"Gustavo Guerreiro",2001,"Algarve","Academia Chushin Associação",{"$f":"SUM(L6:AP6)","v":22},{"$f":"COUNT(L6:AQ6)","v":5},null,null,null,null,null,null,null,4,null,3,6,null,null,null,null,null,null,4,null,null,5]
["Masculino","-42",2,116004,1,"Duarte Lufinha",2001,"Lisboa","Colégio Marista de Carcavelos",13,3,1,null,null,null,null,null,null,6,null,6]
["Masculino","-42",3,115084,1,"Guilherme Lopes",2002,"Santarém","Sporting Clube de Tomar",12,2,null,null,null,null,null,null,null,null,null,null,null,null,null,null,null,null,null,6,null,null,null,6]
["Masculino","-42",4,126073,1,"Mykyta Fuklyev",2002,"Lisboa","Judo Clube Lisboa",5,2,null,null,null,null,null,null,null,null,null,null,null,null,null,null,null,null,null,1,null,null,null,4]
["Masculino","-42",5,132749,1,"João Fonseca",2001,"C.Branco","Academia de Judo de Castelo Branco",2,2,null,null,null,null,null,null,null,1,null,null,1]
["Masculino","-42",6,145988,1,"Bruno Bicas",2001,"Beja","Associação Bombeiros Voluntários de Beja",1,1,null,null,null,null,null,null,null,null,null,1]
["Masculino","-42",7,120184,1,"José Bentes",2002,"Lisboa","Colégio Moderno",1,1,null,null,null,null,null,null,null,null,null,null,null,null,null,null,null,null,null,null,null,null,1]
["Masculino","-42",8,148517,1,"O'Neil Melo",2002,"Lisboa","Academia de Judo da Amadora",1,1,null,null,null,null,null,null,null,null,null,null,null,null,null,null,null,null,null,null,null,null,null,1]
["Masculino","-42",9,null,0,null,null,null,null,0,0]
["Masculino","-42",10,null,0,null,null,null,null,0,0]
["Masculino","-42",11,null,0,null,null,null,null,0,0]
["Masculino","-42",12,null,0,null,null,null,null,0,0]
["Masculino","-42",13,null,0,null,null,null,null,0,0]
["Masculino","-42",14,null,0,null,null,null,null,0,0]
["Masculino","-42",15,null,0,null,null,null,null,0,0]
["Masculino","-42",16,null,0,null,null,null,null,0,0]
["Masculino","-42",17,null,0,null,null,null,null,0,0]
["Masculino","-42",18,null,0,null,null,null,null,0,0]
["Masculino","-42",19,null,0,null,null,null,null,0,0]
["Masculino","-42",20,null,0,null,null,null,null,0,0]
["Masculino","-42",21,null,0,null,null,null,null,0,0]
["Masculino","-42",22,null,0,null,null,null,null,0,0]
["Masculino","-42",23,null,0,null,null,null,null,0,0]
["Masculino","-42",24,null,0,null,null,null,null,0,0]
["Masculino","-42",25,null,0,null,null,null,null,0,0]
["Masculino","-42",26,null,0,null,null,null,null,0,0]
["Masculino","-42",27,null,0,null,null,null,null,0,0]
["Masculino","-42",28,null,0,null,null,null,null,0,0]
["Masculino","-42",29,null,0,null,null,null,null,0,0]
["Masculino","-42",30,null,0,null,null,null,null,0,0]
["Masculino","-42",31,null,0,null,null,null,null,0,0]
["Masculino","-42",32,null,0,null,null,null,null,0,0]

{"sheet":"-46","index":2,"n_rows":45,"n_cols":33,"rows_kept":45,"cut":false,"hidden":false,"merged":[]}
[null,null,null,null,null,null,null,null,"CADETES"]
[null,null,null,null,null,null,null,null,"-46",null,null,"LISBOA","MADEIRA","AÇORES","NORTE","CENTRO-SUL","SUL","CENTRO","FPJ","PORTO","LISBOA","CASTELO BRANCO","COIMBRA","SETÚBAL","VIANA CASTELO","I.TERCEIRA","COIMBRA","SANTARÉM","LISBOA","MADEIRA","AÇORES","SETÚBAL","COIMBRA"]
[null,null,null,null,null,null,null,null,null,null,null,"2016-01-09","2016-01-16","2016-01-16","2016-01-16","2016-01-16","2016-01-16","2016-01-17","2016-01-31","2016-04-02","2016-04-09","2016-04-17","2016-04-30","2016-04-30","2016-06-18","2016-06-25","2016-06-26","2016-07-03","2016-10-22","2016-11-12","2016-11-19","2016-11-19","2016-12-17"]
["Género","Categoria",null,"LF",null,"NOME","Ano de Nascimento","Associação","CLUBE","Somatório de pontos","Número de provas","Camp. Zonal CADETES","Camp. Zonal CADETES","Camp. Zonal CADETES","Camp. Zonal CADETES","Camp. Zonal CADETES","Camp. Zonal CADETES","Camp. Zonal CADETES","Camp.Nac. Cadetes","OPEN CADETES","OPEN CADETES","OPEN MESTRE ANTONIO MORAIS","OPEN INT. CIDADE BARCELOS","OPEN MONTIJO CADETES","OPEN INT. CIDADE DE VALENÇA","TORNEIO DE SÃO JOÃO","TAÇA ANTONIO ALEIXO","OPEN INT. ADJ SANTARÉM","OPEN CADETES","OPEN CADETES","OPEN PONTA DELGADA","OPEN PRAGAL","OPEN CADETES"]
[]
["Masculino","-46",1,123496,{"$f":"COUNTIF(D:D,D6)","v":1},"Bernardo Ribeiro",2001,"Santarém","Sport Clube Operário Cem Soldos",{"$f":"SUM(L6:AP6)","v":54},{"$f":"COUNT(L6:AQ6)","v":7},null,null,null,null,null,null,7,14,6,5,6,null,10,null,null,6]
["Masculino","-46",2,113282,1,"Filipe Sobrinho",2000,"Lisboa","Oficinas São José",26,2,9,null,null,null,null,null,null,17]
["Masculino","-46",3,122477,1,"Gonçalo Oliveira",2001,"Lisboa","Judo Clube de Lisboa",23,2,12,null,null,null,null,null,null,11]
["Masculino","-46",4,131817,1,"Guilherme Alves",2002,"Lisboa","Oficinas São José",17,2,null,null,null,null,null,null,null,null,null,null,null,null,null,null,null,null,null,9,null,null,8]
["Masculino","-46",5,139830,1,"Daniel Damásio",2002,"Santarém","Sociedade Filarmonia Gualdim Pais",17,3,null,null,null,null,null,null,null,null,null,null,null,null,null,null,null,null,null,7,null,null,4,6]
["Masculino","-46",6,122698,1,"Tomás Ezequiel",2001,"Lisboa","Judo Clube Portugal",15,3,4,null,null,null,null,null,null,10,1]
["Masculino","-46",7,127973,1,"Wilson Tavares",2000,"Lisboa","Sport Lisboa e Benfica",13,2,7,null,null,null,null,null,null,6]
["Masculino","-46",8,111741,1,"Filinto Carvalho",2000,"Açores","Clube Escolar Desp. Escola Basica de Arrifes",12,3,null,null,5,null,null,null,null,3,null,null,null,null,null,null,4]
["Masculino","-46",9,131932,1,"João Ildefonso",2001,"Algarve","Judo Clube de Lagos",11,3,null,null,null,null,null,6,null,2,null,null,null,null,3]
["Masculino","-46",10,123135,1,"Ricardo Pires",2002,"Setúbal","Judo Clube Pinhal Novo",10,2,null,null,null,null,null,null,null,null,null,null,null,null,null,null,null,null,null,4,null,null,6]
["Masculino","-46",11,131214,1,"Vicente Santos",2001,"Lisboa","Ginásio Clube Portugues",9,4,1,null,null,null,null,null,null,1,null,1,null,null,null,null,6]
["Masculino","-46",12,128480,1,"Miguel Nogueira",2001,"Setúbal","CCD-Clube Judo Montijo",9,4,null,null,null,null,null,3,null,1,null,null,1,null,4]
["Masculino","-46",13,137546,1,"Manuel Ferreira",2001,"Açores","Judo Clube Ponta Delgada",8,2,null,null,7,null,null,null,null,1]
["Masculino","-46",14,144349,1,"Kaleb Silva",2001,"Lisboa","Escola de Judo Nuno Delgado",6,1,6]
["Masculino","-46",15,129975,1,"Emanuel Lemos",2001,"Porto","Escola Secundária Fontes Pereira de Melo",6,3,null,null,null,1,null,null,null,1,4]
["Masculino","-46",16,134438,1,"Gonçalo Ventura",2000,"Setúbal","CCD-Clube Judo Montijo",6,1,null,null,null,null,null,null,null,null,null,null,null,null,6]
["Masculino","-46",17,113421,1,"Tiago Guerra",2001,"Lisboa","Assoc. Desp. Cul. Encarnação e Olivais",5,2,1,null,null,null,null,null,null,4]
["Masculino","-46",18,138244,1,"Gonçalo Franco",2001,"Lisboa","Judo Clube Lisboa",4,2,3,null,null,null,null,null,null,null,null,null,null,null,null,null,null,1]
["Masculino","-46",19,139769,1,"Henrique Gonçalves",2001,"Lisboa","Academia de Judo da Amadora",4,2,2,null,null,null,null,null,null,2]
["Masculino","-46",20,116004,1,"Duarte Lufinha",2001,"Lisboa","Colégio Marista de Carcavelos",4,2,null,null,null,null,null,null,null,null,null,null,null,null,null,null,null,null,null,3,null,null,1]
["Masculino","-46",21,143359,1,"José Lebre",2002,"Santarém","Sociedade Filarmonia Gualdim Pais",4,3,null,null,null,null,null,null,null,null,null,null,null,null,null,null,null,null,null,1,null,null,2,1]
["Masculino","-46",22,120184,1,"José Bentes",2002,"Lisboa","Colégio Moderno",4,1,null,null,null,null,null,null,null,null,null,null,null,null,null,null,null,null,null,null,null,null,null,4]
["Masculino","-46",23,139561,1,"Tomás Ribeiro",2001,"Lisboa","Sport Algés e Dafundo",3,2,2,null,null,null,null,null,null,1]
["Masculino","-46",24,145555,1,"Miguel Cunha",2001,"Açores","Clube de Judo Angra do Heroismo",3,1,null,null,3]
["Masculino","-46",25,139240,1,"Ricardo Mendes",2001,"Setúbal","Vitória Futebol Clube",3,2,null,null,null,null,null,1,null,2]
["Masculino","-46",26,112634,1,"Tiago Lopes",2001,"Coimbra","Escola de Judo de Coimbra",3,1,null,null,null,null,null,null,3]
["Masculino","-46",27,117960,1,"João Andrade",2000,"Coimbra","Associação Académica de Coimbra",3,1,null,null,null,null,null,null,3]
["Masculino","-46",28,133688,1,"Pedro Fernandes",2001,"I.Terceira","Clube de Judo Praia da Vitória",2,2,null,null,1,null,null,null,null,null,null,null,null,null,null,null,1]
["Masculino","-46",29,132749,1,"João Fonseca",2001,"C.Branco","Academia de Judo de Castelo Branco",1,1,null,null,null,null,1]
["Masculino","-46",30,142797,1,"Sérgio Alves",2001,"Madeira","Grupo Desportivo APEL",1,1,null,1]
["Masculino","-46",31,122344,1,"João Lopes",2001,"Coimbra","Associação Cristã da Mocidade Coimbra",1,1,null,null,null,null,null,null,1]
["Masculino","-46",32,129466,1,"Lourenço Miguel",2001,"Santarém","Sporting Clube Tomar",1,1,null,null,null,null,null,null,1]
["Masculino","-46",33,123343,1,"Bernardo Pires",2000,"Guarda","Sporting Clube Sabugal",1,1,null,null,null,null,null,null,null,1]
["Masculino","-46",34,145111,1,"Gustavo Guerreiro",2001,"Algarve","Academia Chushin Associação",1,1,null,null,null,null,null,null,null,null,null,null,null,null,1]
["Masculino","-46",35,130870,1,"Bruno Bidarra",2001,"Lisboa","Grupo Recreativo Gonçalvinhense",1,1,null,null,null,null,null,null,null,null,null,null,null,null,1]
["Masculino","-46",36,149503,1,"Rafael Rosa",2000,"Santarém","Judo Clube Salvaterra de Magos",1,1,null,null,null,null,null,null,null,null,null,null,null,null,null,null,null,null,null,1]
["Masculino","-46",37,null,0,null,null,null,null,0,0]
["Masculino","-46",38,null,0,null,null,null,null,0,0]
["Masculino","-46",39,null,0,null,null,null,null,0,0]
["Masculino","-46",40,null,0,null,null,null,null,0,0]

{"sheet":"-50","index":3,"n_rows":63,"n_cols":33,"rows_kept":63,"cut":false,"hidden":false,"merged":[]}
[null,null,null,null,null,null,null,null,"CADETES"]
[null,null,null,null,null,null,null,null,"-50KG ",null,null,"LISBOA","MADEIRA","AÇORES","NORTE","CENTRO-SUL","SUL","CENTRO","FPJ","PORTO","LISBOA","CASTELO BRANCO","COIMBRA","SETÚBAL","VIANA CASTELO","I.TERCEIRA","COIMBRA","SANTARÉM","LISBOA","MADEIRA","AÇORES","SETÚBAL","COIMBRA"]
[null,null,null,null,null,null,null,null,null,null,null,"2016-01-09","2016-01-16","2016-01-16","2016-01-16","2016-01-16","2016-01-16","2016-01-17","2016-01-31","2016-04-02","2016-04-09","2016-04-17","2016-04-30","2016-04-30","2016-06-18","2016-06-25","2016-06-26","2016-07-03","2016-10-22","2016-11-12","2016-11-19","2016-11-19","2016-12-17"]
["Género","Categoria",null,"LF",null,"NOME","Ano de Nascimento","Associação","CLUBE","Somatório de pontos","Número de provas","Camp. Zonal CADETES","Camp. Zonal CADETES","Camp. Zonal CADETES","Camp. Zonal CADETES","Camp. Zonal CADETES","Camp. Zonal CADETES","Camp. Zonal CADETES","Camp.Nac. Cadetes","OPEN CADETES","OPEN CADETES","OPEN MESTRE ANTONIO MORAIS","OPEN INT. CIDADE BARCELOS","OPEN MONTIJO CADETES","OPEN INT. CIDADE DE VALENÇA","TORNEIO DE SÃO JOÃO","TAÇA ANTONIO ALEIXO","OPEN INT. ADJ SANTARÉM","OPEN CADETES","OPEN CADETES","OPEN PONTA DELGADA","OPEN PRAGAL","OPEN CADETES"]
[]
["Masculino","-50",1,122477,{"$f":"COUNTIF(D:D,D6)","v":1},"Gonçalo Oliveira",2001,"Lisboa","Judo Clube de Lisboa",{"$f":"SUM(L6:AP6)","v":45},{"$f":"COUNT(L6:AP6)","v":4},null,null,null,null,null,null,null,null,10,12,null,null,13,null,null,10]
["Masculino","-50",2,140805,1,"Daniel Costa",2001,"Coimbra","Judo Clube Coimbra",35,5,null,null,null,null,null,null,3,11,null,null,11,null,null,null,null,7,3]
["Masculino","-50",3,113282,1,"Filipe Sobrinho",2000,"Lisboa","Oficinas São José",31,4,null,null,null,null,null,null,null,null,7,5,null,null,null,null,null,null,7,null,null,null,12]
["Masculino","-50",4,122463,1,"Daniel Santos",2000,"Lisboa","Clube Atlético da Alta de Lisboa",28,2,10,null,null,null,null,null,null,18]
["Masculino","-50",5,138244,1,"Gonçalo Franco",2001,"Lisboa","Judo Clube Lisboa",28,6,null,null,null,null,null,null,null,1,1,10,3,null,6,null,null,null,7]
["Masculino","-50",6,144349,1,"Kaleb Silva",2001,"Lisboa","Escola de Judo Nuno Delgado",23,4,null,null,null,null,null,null,null,1,null,null,7,null,6,null,null,null,9]
["Masculino","-50",7,118770,1,"Francisco Soares",2002,"Viseu","Judo Clube de Viseu",22,2,null,null,null,null,null,null,null,null,null,null,null,null,null,null,null,null,null,10,null,null,null,12]
["Masculino","-50",8,112730,1,"André Diogo",2001,"Coimbra","Judo Clube Coimbra",20,3,null,null,null,null,null,null,10,4,null,null,null,6]
["Masculino","-50",9,132021,1,"Lucas Catarino",2000,"Lisboa","Escola de Judo Nuno Delgado",18,2,6,null,null,null,null,null,null,12]
["Masculino","-50",10,123496,1,"Bernardo Ribeiro",2001,"Santarém","Sport Clube Operário Cem Soldos",18,2,null,null,null,null,null,null,null,null,null,null,null,null,null,null,null,null,null,12,null,null,null,6]
["Masculino","-50",11,132029,1,"Rui Nobre",2000,"Lisboa","Escola de Judo Nuno Delgado",17,2,4,null,null,null,null,null,null,13]
["Masculino","-50",12,113421,1,"Tiago Guerra",2001,"Lisboa","Assoc. Desp. Cul. Encarnação e Olivais",14,4,null,null,null,null,null,null,null,null,null,4,null,null,1,null,null,null,null,6,null,null,3]
["Masculino","-50",13,149185,1,"Gonçalo Silva",2001,"Setúbal","CCD-Clube Judo Montijo",14,3,null,null,null,null,null,null,null,null,null,null,null,null,null,null,null,null,1,6,null,null,7]
["Masculino","-50",14,128480,1,"Miguel Nogueira",2001,"Setúbal","CCD-Clube Judo Montijo",13,3,null,null,null,null,null,null,null,null,null,null,null,null,null,null,null,null,1,3,null,null,9]
["Masculino","-50",15,117597,1,"Miguel Batista",2000,"Lisboa","ISJudo Associação",12,5,1,null,null,null,null,null,null,2,3,null,4,null,null,null,null,2]
["Masculino","-50",16,129975,1,"Emanuel Lemos",2001,"Porto","Escola Secundária Fontes Pereira de Melo",10,2,null,null,null,null,null,null,null,null,null,null,null,1,null,null,null,null,null,null,null,null,null,9]
["Masculino","-50",17,112634,1,"Tiago Lopes",2001,"Coimbra","Escola de Judo de Coimbra",9,2,null,null,null,null,null,null,null,4,null,null,null,null,null,null,null,5]
["Masculino","-50",18,115242,1,"Afonso Esteves",2001,"Lisboa","Colégio Marista de Carcavelos",8,4,3,null,null,null,null,null,null,1,null,2,null,null,null,null,null,null,null,2]
["Masculino","-50",19,130177,1,"Tiago Machado",2001,"Açores","Clube Escolar Desp. Escola Basica de Arrifes",8,3,null,null,6,null,null,null,1,1]
["Masculino","-50",20,119325,1,"Pedro Fonte",2000,"Setúbal","Judo Clube Pragal",8,2,null,null,null,null,null,7,null,1]
["Masculino","-50",21,139769,1,"Henrique Gonçalves",2001,"Lisboa","Academia de Judo da Amadora",8,3,null,null,null,null,null,null,null,null,null,4,null,null,3,null,null,null,null,null,null,null,1]
["Masculino","-50",22,127835,1,"José Folhadela",2000,"Porto","Escola Secundária Fontes Pereira de Melo",7,3,null,null,null,5,null,null,null,1,1]
["Masculino","-50",23,134138,1,"Diogo Guerreiro",2001,"Algarve","Judo Clube do Algarve",7,2,null,null,null,null,null,5,null,2]
["Masculino","-50",24,131214,1,"Vicente Santos",2001,"Lisboa","Ginásio Clube Portugues",7,1,null,null,null,null,null,null,null,null,null,null,null,null,null,null,null,null,null,null,null,null,null,7]
["Masculino","-50",25,120701,1,"Rodrigo Carita",2001,"C.Branco","Escola de Judo Ana Hormigo",6,1,null,null,null,null,6]
["Masculino","-50",26,120279,1,"Vicente Sousa",2002,"Lisboa","Colégio do Bom Sucesso",6,2,null,null,null,null,null,null,null,null,null,null,null,null,null,null,null,null,null,3,null,null,3]
["Masculino","-50",27,147476,1,"Gilberto Domingos",2002,"Lisboa","Escola de Judo Nuno Delgado",6,1,null,null,null,null,null,null,null,null,null,null,null,null,null,null,null,null,null,null,null,null,6]
["Masculino","-50",28,111393,1,"António Candeias",2001,"Açores","Clube de Judo Angra do Heroismo",5,2,null,null,4,null,null,null,null,1]
["Masculino","-50",29,125733,1,"Pedro Coelho",2000,"Braga","Associação Desportiva e Cultural Manhente",5,2,null,null,null,3,null,null,null,2]
["Masculino","-50",30,144212,1,"Leonardo Mateus",2000,"Algarve","Associação Cultural e Desportiva de Ferragudo",5,2,null,null,null,null,null,3,null,2]
["Masculino","-50",31,139561,1,"Tomás Ribeiro",2001,"Lisboa","Sport Algés e Dafundo",5,3,null,null,null,null,null,null,null,null,null,1,1,null,null,null,null,null,3]
["Masculino","-50",32,149153,1,"Pedro Pereira",2001,"Setúbal","Clube Recrativo Charnequense",5,2,null,null,null,null,null,null,null,null,null,null,null,null,4,null,null,1]
["Masculino","-50",33,139442,{"$f":"COUNTIF(D:D,D38)","v":1},"Nuno Figueira",2000,"Algarve","BEJUDO - Clube",{"$f":"SUM(L38:AP38)","v":3},{"$f":"COUNT(L38:AP38)","v":2},null,null,null,null,null,1,null,2]
["Masculino","-50",34,122698,1,"Tomás Ezequiel",2001,"Lisboa","Judo Clube Portugal",3,2,null,null,null,null,null,null,null,null,null,1,2]
["Masculino","-50",35,125121,1,"Tiago Bento",2000,"Lisboa","Assoc. Desp. Cul. Encarnação e Olivais",3,3,null,null,null,null,null,null,null,null,null,1,null,null,1,null,null,null,null,1]
["Masculino","-50",36,149914,1,"Daniel Duarte",2001,"Coimbra","Montanha Clube",3,1,null,null,null,null,null,null,null,null,null,null,null,null,null,null,null,null,null,null,null,null,null,3]
["Masculino","-50",37,117592,1,"Jonas Mendonça",2000,"Lisboa","ISJudo Associação",2,2,1,null,null,null,null,null,null,1]
["Masculino","-50",38,122344,1,"João Lopes",2001,"Coimbra","Associação Cristã da Mocidade Coimbra",2,1,null,null,null,null,null,null,null,null,null,null,null,null,null,null,null,2]
["Masculino","-50",39,110607,1,"Ricardo Ceia",2002,"Lisboa","Escola de Judo Nuno Delgado",2,2,null,null,null,null,null,null,null,null,null,null,null,null,null,null,null,null,null,1,null,null,1]
["Masculino","-50",40,128798,1,"Afonso Loureiro",2000,"C.Branco","Projeto Ippon Judo Clube",1,1,null,null,null,null,1]
["Masculino","-50",41,131023,1,"António Mendonça",2001,"Açores","Clube de Judo Angra do Heroismo",1,1,null,null,1]
["Masculino","-50",42,121957,1,"Américo Gomes",2001,"Madeira","Judo Clube Madeira",1,1,null,1]
["Masculino","-50",43,123343,1,"Bernardo Pires",2000,"Guarda","Sporting Clube Sabugal",1,1,null,null,null,1]
["Masculino","-50",44,123370,1,"Tomás Mendes",2001,"Santarém","Clube de Judo Riachos",1,1,null,null,null,null,null,null,1]
["Masculino","-50",45,115483,1,"Gonçalo Mortágua",2001,"Coimbra","Escola de Judo de Coimbra",1,1,null,null,null,null,null,null,1]
["Masculino","-50",46,129466,1,"Lourenço Miguel",2001,"Santarém","Sporting Clube Tomar",1,1,null,null,null,null,null,null,null,1]
["Masculino","-50",47,126701,1,"Jorge Caldeira",2001,"Porto","Escola Secundária Fontes Pereira de Melo",1,1,null,null,null,null,null,null,null,1]
["Masculino","-50",48,131932,1,"João Ildefonso",2001,"Algarve","Judo Clube de Lagos",1,1,null,null,null,null,null,null,null,null,null,1]
["Masculino","-50",49,126745,1,"António Luís",2001,"Madeira","Grupo Desportivo APEL",1,1,null,null,null,null,null,null,null,null,null,null,null,null,1]
["Masculino","-50",50,130870,1,"Bruno Bidarra",2001,"Lisboa","Grupo Recreativo Gonçalvinhense",1,1,null,null,null,null,null,null,null,null,null,null,null,null,null,null,null,1]
["Masculino","-50",51,132017,1,"José Barreira",2002,"Lisboa","Escola de Judo Nuno Delgado",1,1,null,null,null,null,null,null,null,null,null,null,null,null,null,null,null,null,null,null,null,null,1]
["Masculino","-50",52,148518,1,"Sandro Couto",2002,"Lisboa","Academia de Judo da Amadora",1,1,null,null,null,null,null,null,null,null,null,null,null,null,null,null,null,null,null,null,null,null,null,1]
["Masculino","-50",53,137952,1,"Guilherme Pereira",2002,"Santarém","Sporting Clube de Tomar",1,1,null,null,null,null,null,null,null,null,null,null,null,null,null,null,null,null,null,null,null,null,null,1]
["Masculino","-50",54,144759,1,"Samuel Machado",2002,"Coimbra","Escola de Judo de Coimbra",1,1,null,null,null,null,null,null,null,null,null,null,null,null,null,null,null,null,null,null,null,null,null,1]
["Masculino","-50",55,133770,1,"Luís Leite",2002,"Porto","Escola Secundária Fontes Pereira de Melo",1,1,null,null,null,null,null,null,null,null,null,null,null,null,null,null,null,null,null,null,null,null,null,1]
["Masculino","-50",56]
["Masculino","-50",57]
["Masculino","-50",58]

{"sheet":"-55","index":4,"n_rows":97,"n_cols":33,"rows_kept":97,"cut":false,"hidden":false,"merged":[]}
[null,null,null,null,null,null,null,null,"CADETES"]
[null,null,null,null,null,null,null,null,"-55KG ",null,null,"LISBOA","MADEIRA","AÇORES","NORTE","CENTRO-SUL","SUL","CENTRO","FPJ","PORTO","LISBOA","CASTELO BRANCO","COIMBRA","SETÚBAL","VIANA CASTELO","I.TERCEIRA","COIMBRA","SANTARÉM","LISBOA","MADEIRA","AÇORES","SETÚBAL","COIMBRA"]
[null,null,null,null,null,null,null,null,null,null,null,"2016-01-09","2016-01-16","2016-01-16","2016-01-16","2016-01-16","2016-01-16","2016-01-17","2016-01-31","2016-04-02","2016-04-09","2016-04-17","2016-04-30","2016-04-30","2016-06-18","2016-06-25","2016-06-26","2016-07-03","2016-10-22","2016-11-12","2016-11-19","2016-11-19","2016-12-17"]
["Género","Categoria",null,"LF",null,"NOME","Ano de Nascimento","Associação","CLUBE","Somatório de pontos","Número de provas","Camp. Zonal CADETES","Camp. Zonal CADETES","Camp. Zonal CADETES","Camp. Zonal CADETES","Camp. Zonal CADETES","Camp. Zonal CADETES","Camp. Zonal CADETES","Camp.Nac. Cadetes","OPEN CADETES","OPEN CADETES","OPEN MESTRE ANTONIO MORAIS","OPEN INT. CIDADE BARCELOS","OPEN MONTIJO CADETES","OPEN INT. CIDADE DE VALENÇA","TORNEIO DE SÃO JOÃO","TAÇA ANTONIO ALEIXO","OPEN INT. ADJ SANTARÉM","OPEN CADETES","OPEN CADETES","OPEN PONTA DELGADA","OPEN PRAGAL","OPEN CADETES"]
[]
["Masculino","-55",1,122463,{"$f":"COUNTIF(D:D,D6)","v":1},"Daniel Santos",2000,"Lisboa","Clube Atlético da Alta de Lisboa",{"$f":"SUM(L6:AP6)","v":111},{"$f":"COUNT(L6:AP6)","v":8},null,null,null,null,null,null,null,null,14,13,13,null,13,null,null,null,13,17,null,null,11,17]
["Masculino","-55",2,132021,1,"Lucas Catarino",2000,"Lisboa","Escola de Judo Nuno Delgado",63,6,null,null,null,null,null,null,null,null,null,11,10,null,8,null,null,null,7,10,null,null,17]
["Masculino","-55",3,119245,1,"Bruno Bento",2000,"Setúbal","Clube Recreativo Charnequense",58,10,null,null,null,null,null,10,null,2,10,4,null,null,1,null,null,4,5,7,null,null,4,11]
["Masculino","-55",4,140178,1,"Vasco Pimenta",2001,"Lisboa","Sport Lisboa e Benfica",45,7,1,null,null,null,null,null,null,null,7,7,7,6,null,null,null,null,null,10,null,null,7]
["Masculino","-55",5,122477,1,"Gonçalo Oliveira",2001,"Lisboa","Judo Clube de Lisboa",39,4,null,null,null,null,null,null,null,null,null,null,null,null,null,null,null,null,3,13,null,null,10,13]
["Masculino","-55",6,126951,1,"Daniel Almeida",2001,"Setúbal","Externato Frei Luis de Sousa",29,4,null,null,null,null,null,6,null,5,null,11,null,null,7]
["Masculino","-55",7,132029,1,"Rui Nobre",2000,"Lisboa","Escola de Judo Nuno Delgado",27,5,null,null,null,null,null,null,null,null,null,7,8,null,4,null,null,null,7,1]
["Masculino","-55",8,114740,1,"Guilherme Souza",2001,"Setúbal","Vitória Futebol Clube",24,2,null,null,null,null,null,12,null,12]
["Masculino","-55",9,133642,1,"Bruno Barros",2001,"Santarém","Sport Clube Operário Cem Soldos",24,2,null,null,null,null,null,null,13,11]
["Masculino","-55",10,143706,1,"Alexandrino Gomes",2001,"Lisboa","Sport Lisboa e Benfica",21,6,4,null,null,null,null,null,null,null,1,3,null,5,null,null,null,null,null,null,null,null,2,6]
["Masculino","-55",11,139791,1,"Afonso Silva",2001,"Lisboa","Universidade Lusofona de Humanidades de Tecnologias",20,7,2,null,null,null,null,null,null,1,5,1,5,null,5,null,null,null,1]
["Masculino","-55",12,120454,1,"David Barros",2002,"Lisboa","Judo Clube de Lisboa",16,2,null,null,null,null,null,null,null,null,null,null,null,null,null,null,null,null,null,3,null,null,13]
["Masculino","-55",13,127809,1,"Guilherme Pereira",2001,"Lisboa","Sport Algés e Dafundo",13,5,2,null,null,null,null,null,null,5,null,1,4,null,null,null,null,null,1]
["Masculino","-55",14,117597,1,"Miguel Batista",2000,"Lisboa","ISJudo Associação",13,6,null,null,null,null,null,null,null,null,null,1,null,null,2,null,null,null,1,6,null,null,1,2]
["Masculino","-55",15,119839,1,"Pedro Pinheiro",2001,"Aveiro","Sport Clube Beira Mar",12,4,null,null,null,2,null,null,null,2,2,null,null,null,null,null,null,6]
["Masculino","-55",16,125733,1,"Pedro Coelho",2000,"Braga","Associação Desportiva e Cultural Manhente",12,5,null,null,null,null,null,null,null,null,1,null,null,1,null,8,null,null,1,null,null,null,null,1]
["Masculino","-55",17,137622,1,"João Lopes",2001,"Porto","Boavista Futebol Clube",11,3,null,null,null,8,null,null,null,1,2]
["Masculino","-55",18,134567,1,"João Silva",2000,"Leiria","Associação Humanitária Bombeiros Voluntários do Bombarral",11,2,null,null,null,null,null,null,10,1]
["Masculino","-55",19,112730,1,"André Diogo",2001,"Coimbra","Judo Clube de Coimbra",11,1,null,null,null,null,null,null,null,null,null,null,null,null,null,null,null,null,null,null,null,null,null,11]
["Masculino","-55",20,117592,1,"Jonas Mendonça",2000,"Lisboa","ISJudo Associação",10,4,null,null,null,null,null,null,null,null,4,2,null,null,null,null,null,2,2]
["Masculino","-55",21,123117,1,"Gonçalo Mateus",2000,"Setúbal","Clube Recreativo Charnequense",9,6,null,null,null,null,null,2,null,null,1,1,null,null,1,null,null,null,null,2,null,null,null,2]
["Masculino","-55",22,127568,1,"Álvaro Almeida",2000,"Santarém","Associação de Marinheiros de Ferreira de Zêzere",9,2,null,null,null,null,null,null,7,2]
["Masculino","-55",23,145014,1,"Filipe Antunes",2001,"C.Branco","Sport Tortosendo e Benfica",8,3,null,null,null,null,6,null,null,1,null,null,1]
["Masculino","-55",24,137760,1,"João Fernandes",2000,"I. Terceira","Judo Clube São Carlos",8,2,null,null,6,null,null,null,null,2]
["Masculino","-55",25,112300,1,"João Costa",2001,"Madeira","Judo Clube Madeira",8,3,null,6,null,null,null,null,null,1,null,1]
["Masculino","-55",26,126701,1,"Jorge Caldeira",2001,"Porto","Escola Secundária Fontes Pereira de Melo",8,2,null,null,null,2,null,null,null,null,6]
["Masculino","-55",27,116835,1,"Tiago Barreiros",2001,"Leiria","Judo Clube Marinha Grande",8,2,null,null,null,null,null,null,7,1]
["Masculino","-55",28,120899,1,"Duarte Santos",2002,"Coimbra","Judo Clube de Coimbra",8,1,null,null,null,null,null,null,null,null,null,null,null,null,null,null,null,null,null,null,null,null,null,8]
["Masculino","-55",29,131138,1,"Martim Alves",2001,"Lisboa","Universidade Lusofona de Humanidades de Tecnologias",7,5,1,null,null,null,null,null,null,null,1,null,1,null,2,null,null,null,null,2]
["Masculino","-55",30,119239,1,"João Matos",2000,"Setúbal","Grupo de Amigos da Costa da Caparica",7,4,null,null,null,null,null,3,null,null,null,null,1,null,2,null,null,null,1]
["Masculino","-55",31,134138,1,"Diogo Guerreiro",2001,"Algarve","Judo Clube do Algarve",7,1,null,null,null,null,null,null,null,null,null,null,null,null,null,null,null,null,null,null,null,null,7]
["Masculino","-55",32,116178,1,"Frederico Santo",2001,"Lisboa","Sport Algés e Dafundo",6,2,5,null,null,null,null,null,null,1]
["Masculino","-55",33,139602,{"$f":"COUNTIF(D:D,D38)","v":1},"Bruno Rego",2000,"Porto","Boavista Futebol Clube",{"$f":"SUM(L38:AP38)","v":6},{"$f":"COUNT(L38:AP38)","v":2},null,null,null,4,null,null,null,2]
["Masculino","-55",34,144212,1,"Leonardo Mateus",2000,"Algarve","Associação Cultural e Desportiva de Ferragudo",6,2,null,null,null,null,null,null,null,null,null,null,null,null,1,null,null,null,null,null,null,null,5]
["Masculino","-55",35,124229,1,"Maxim Guneniuc",2001,"Lisboa","Clube Atletico da Alta de Lisboa",5,5,1,null,null,null,null,null,null,null,1,null,1,null,1,null,null,1]
["Masculino","-55",36,122995,1,"Pedro Sousa",2000,"Viseu","Judo Clube Viseu",5,2,null,null,null,4,null,null,null,1]
["Masculino","-55",37,132980,1,"Marco Guedes",2000,"Braga","Associação Desportiva e Cultural Manhente",5,4,null,null,null,1,null,null,null,null,1,null,null,2,null,1]
["Masculino","-55",38,115483,1,"Gonçalo Mortágua",2001,"Coimbra","Escola de Judo de Coimbra",5,3,null,null,null,null,null,null,null,1,null,null,1,null,null,null,null,3]
["Masculino","-55",39,144349,1,"Kaleb Silva",2001,"Lisboa","Escola de Judo Nuno Delgado",5,2,null,null,null,null,null,null,null,null,null,null,null,null,null,null,null,null,null,4,null,null,1]
["Masculino","-55",40,113461,1,"João Azevedo",2002,"Lisboa","Escola de Judo Nuno Delgado",5,2,null,null,null,null,null,null,null,null,null,null,null,null,null,null,null,null,null,4,null,null,1]
["Masculino","-55",41,131009,1,"Pedro Lemos",2000,"C.Branco","Atlético Clube Fundanense",4,1,null,null,null,null,4]
["Masculino","-55",42,122376,1,"Joaquim Oliveira",2000,"Açores","Clube de Judo Angra do Heroismo",4,1,null,null,4]
["Masculino","-55",43,118910,1,"Gonçalo Costa",2001,"Coimbra","Judo Clube de Barcelos - JUBA",4,2,null,null,null,null,null,null,3,1]
["Masculino","-55",44,119363,1,"Nuno Martins",2002,"Setúbal","Judo Clube Pinhal Novo",4,2,null,null,null,null,null,null,null,null,null,null,null,null,null,null,null,null,null,2,null,null,2]
["Masculino","-55",45,112634,1,"Tiago Lopes",2001,"Coimbra","Escola de Judo de Coimbra",4,1,null,null,null,null,null,null,null,null,null,null,null,null,null,null,null,null,null,null,null,null,null,4]
["Masculino","-55",46,140805,1,"Daniel Costa",2001,"Coimbra","Judo Clube de Coimbra",4,1,null,null,null,null,null,null,null,null,null,null,null,null,null,null,null,null,null,null,null,null,null,4]
["Masculino","-55",47,135371,1,"Guilherme Mourão",2001,"Lisboa","Colégio Marista de Carcavelos",3,2,1,null,null,null,null,null,null,null,null,2]
["Masculino","-55",48,118884,1,"José Vieira",2001,"I. Terceira","Judo Clube Praia da Vitória",3,3,null,null,1,null,null,null,null,1,null,null,null,null,null,null,1]
["Masculino","-55",49,134391,1,"Daniel Fino",2001,"Setúbal","Vitória Futebol Clube",3,2,null,null,null,null,null,1,null,null,2]
["Masculino","-55",50,141832,1,"Alexandre Gitanu",2001,"Setúbal","Externato Frei Luis de Sousa",3,3,null,null,null,null,null,1,null,null,null,1,null,null,1]
["Masculino","-55",51,120756,1,"Gonçalo Rodrigues",2001,"Coimbra","Judo Clube de Barcelos - JUBA",3,2,null,null,null,null,null,null,2,1]
["Masculino","-55",52,136842,1,"Diogo Santos",2000,"Porto","Escola Básica Dr. Costa Matos",3,1,null,null,null,null,null,null,null,3]
["Masculino","-55",53,131214,1,"Vicente Santos",2001,"Lisboa","Ginásio Clube Portugues",3,2,null,null,null,null,null,null,null,null,null,null,null,null,null,null,null,null,null,2,null,null,1]
["Masculino","-55",54,124938,1,"Diogo Santos",2000,"Lisboa","Sport Algés e Dafundo",2,1,2]
["Masculino","-55",55,145698,1,"Miguel Antunes",2000,"C.Branco","Atlético Clube Fundanense",2,2,null,null,null,null,1,null,null,null,null,null,1]
["Masculino","-55",56,127835,1,"José Folhadela",2000,"Porto","Escola Secundária Fontes Pereira de Melo",2,2,null,null,null,null,null,null,null,null,null,null,null,1,null,null,null,null,null,null,null,null,null,1]
["Masculino","-55",57,139561,1,"Tomás Ribeiro",2001,"Lisboa","Sport Algés e Dafundo",2,2,null,null,null,null,null,null,null,null,null,null,null,null,null,null,null,null,null,1,null,null,1]
["Masculino","-55",58,127797,1,"Diogo Silva",2002,"Lisboa","Judo Clube de Lisboa",2,2,null,null,null,null,null,null,null,null,null,null,null,null,null,null,null,null,null,1,null,null,null,1]
["Masculino","-55",59,141579,1,"Sebastião Holtreman",2002,"Lisboa","Ginásio Clube Portugues",2,2,null,null,null,null,null,null,null,null,null,null,null,null,null,null,null,null,null,null,null,null,1,1]
["Masculino","-55",60,115242,1,"Afonso Esteves",2001,"Lisboa","Colégio Marista de Carcavelos",2,1,null,null,null,null,null,null,null,null,null,null,null,null,null,null,null,null,null,null,null,null,2]
["Masculino","-55",61,130418,1,"Denis Levchuk",2002,"Setúbal","Judo Clube do Pragal",2,1,null,null,null,null,null,null,null,null,null,null,null,null,null,null,null,null,null,null,null,null,2]
["Masculino","-55",62,120897,1,"Carlos Santos",2002,"Coimbra","Judo Clube de Coimbra",2,1,null,null,null,null,null,null,null,null,null,null,null,null,null,null,null,null,null,null,null,null,null,2]
["Masculino","-55",63,144636,1,"Ricardo Dias",2002,"Coimbra","Associação Recreativa de São Miguel",2,1,null,null,null,null,null,null,null,null,null,null,null,null,null,null,null,null,null,null,null,null,null,2]
["Masculino","-55",64,107025,1,"Pedro Abreu",2000,"Madeira","Judo Clube Brava",1,1,null,1]
["Masculino","-55",65,134223,{"$f":"COUNTIF(D:D,D70)","v":1},"António Rodrigues",2001,"Setúbal","Judo Clube do Pragal",{"$f":"SUM(L70:AP70)","v":1},{"$f":"COUNT(L70:AP70)","v":1},null,null,null,null,null,1]
["Masculino","-55",66,122311,1,"Eduardo Esteves",2000,"Santarém","Ateneu Artistico Cartaxense",1,1,null,null,null,null,null,null,1]
["Masculino","-55",67,120757,1,"Luís Tavares",2001,"Coimbra","Judo Clube de Barcelos - JUBA",1,1,null,null,null,null,null,null,1]
["Masculino","-55",68,120701,1,"Rodrigo Carita",2001,"C.Branco","Escola de Judo Ana Hormigo",1,1,null,null,null,null,null,null,null,1]
["Masculino","-55",69,123370,1,"Tomás Mendes",2001,"Santarém","Clube de Judo Riachos",1,1,null,null,null,null,null,null,null,1]
["Masculino","-55",70,119495,1,"Rui Jorge",2001,"Coimbra","Associação Académica de Coimbra",1,1,null,null,null,null,null,null,null,null,1]
["Masculino","-55",71,145989,1,"Roberto Silva",2001,"Beja","Associação Bombeiros Voluntários de Beja",1,1,null,null,null,null,null,null,null,null,null,1]
["Masculino","-55",72,130177,1,"Tiago Machado",2001,"Açores","Clube Escolar Desp. Escola Basica de Arrifes",1,1,null,null,null,null,null,null,null,null,null,null,null,null,null,null,1]
["Masculino","-55",73,131600,1,"Gonçalo Monteiro",2002,"Viseu","Dinamo Clube Estação",1,1,null,null,null,null,null,null,null,null,null,null,null,null,null,null,null,null,null,1]
["Masculino","-55",74,116174,1,"Ricardo Silva",2001,"Lisboa","Clube Atlético de Campo de Ourique",1,1,null,null,null,null,null,null,null,null,null,null,null,null,null,null,null,null,null,1]
["Masculino","-55",75,139769,1,"Henrique Gonçalves",2001,"Lisboa","Academia de Judo da Amadora",1,1,null,null,null,null,null,null,null,null,null,null,null,null,null,null,null,null,null,1]
["Masculino","-55",76,129939,1,"Tomás Monteiro",2002,"Viseu","Dinamo Clube Estação",1,1,null,null,null,null,null,null,null,null,null,null,null,null,null,null,null,null,null,1]
["Masculino","-55",77,145421,1,"Maksym Boronchuk",2002,"Lisboa","Sporting Clube Portugal",1,1,null,null,null,null,null,null,null,null,null,null,null,null,null,null,null,null,null,null,null,null,1]
["Masculino","-55",78,132414,1,"Cristian Morari",2002,"Lisboa","ISJudo Associação",1,1,null,null,null,null,null,null,null,null,null,null,null,null,null,null,null,null,null,null,null,null,1]
["Masculino","-55",79,138772,1,"Gonçalo Torre",2002,"Lisboa","Colégio Marista de Carcavelos",1,1,null,null,null,null,null,null,null,null,null,null,null,null,null,null,null,null,null,null,null,null,1]
["Masculino","-55",80,141544,1,"Rafael Santos",2002,"Setúbal","Clube Recreativo Charnequense",1,1,null,null,null,null,null,null,null,null,null,null,null,null,null,null,null,null,null,null,null,null,null,1]
["Masculino","-55",81,140773,1,"André Lopes",2002,"Santarém","Sporting Clube de Tomar",1,1,null,null,null,null,null,null,null,null,null,null,null,null,null,null,null,null,null,null,null,null,null,1]
["Masculino","-55",82,129470,1,"Luís Pereira",2002,"Braga","Associação Desportiva e Cultural Manhente",1,1,null,null,null,null,null,null,null,null,null,null,null,null,null,null,null,null,null,null,null,null,null,1]
["Masculino","-55",83,120828,1,"Rúben Coutinho",2002,"Braga","Casa do Povo de Ronfe",1,1,null,null,null,null,null,null,null,null,null,null,null,null,null,null,null,null,null,null,null,null,null,1]
["Masculino","-55",84,125291,1,"Pedro Teles",2002,"Leiria","Judo Clube Marinha Grande",1,1,null,null,null,null,null,null,null,null,null,null,null,null,null,null,null,null,null,null,null,null,null,1]
["Masculino","-55",85,null,0,null,null,null,null,0,0]
["Masculino","-55",86,null,0,null,null,null,null,0,0]
["Masculino","-55",87,null,0,null,null,null,null,0,0]
["Masculino","-55",88,null,0,null,null,null,null,0,0]
["Masculino","-55",89,null,0,null,null,null,null,0,0]
["Masculino","-55",90,null,0,null,null,null,null,0,0]
["Masculino","-55",91,null,0,null,null,null,null,0,0]
["Masculino","-55",92,null,0,null,null,null,null,0,0]

{"sheet":"-60","index":5,"n_rows":113,"n_cols":33,"rows_kept":113,"cut":false,"hidden":false,"merged":[]}
[null,null,null,null,null,null,null,null,"CADETES"]
[null,null,null,null,null,null,null,null,"-60KG ",null,null,"LISBOA","MADEIRA","AÇORES","NORTE","CENTRO-SUL","SUL","CENTRO","FPJ","PORTO","LISBOA","CASTELO BRANCO","COIMBRA","SETÚBAL","VIANA CASTELO","I.TERCEIRA","COIMBRA","SANTARÉM","LISBOA","MADEIRA","AÇORES","SETÚBAL","COIMBRA"]
[null,null,null,null,null,null,null,null,null,null,null,"2016-01-09","2016-01-16","2016-01-16","2016-01-16","2016-01-16","2016-01-16","2016-01-17","2016-01-31","2016-04-02","2016-04-09","2016-04-17","2016-04-30","2016-04-30","2016-06-18","2016-06-25","2016-06-26","2016-07-03","2016-10-22","2016-11-12","2016-11-19","2016-11-19","2016-12-17"]
["Género","Categoria",null,"LF",null,"NOME","Ano de Nascimento","Associação","CLUBE","Somatório Pontos","Número de provas","Camp. Zonal CADETES","Camp. Zonal CADETES","Camp. Zonal CADETES","Camp. Zonal CADETES","Camp. Zonal CADETES","Camp. Zonal CADETES","Camp. Zonal CADETES","Camp.Nac. Cadetes","OPEN CADETES","OPEN CADETES","OPEN MESTRE ANTONIO MORAIS","OPEN INT. CIDADE BARCELOS","OPEN MONTIJO CADETES","OPEN INT. CIDADE DE VALENÇA","TORNEIO DE SÃO JOÃO","TAÇA ANTONIO ALEIXO","OPEN INT. ADJ SANTARÉM","OPEN CADETES","OPEN CADETES","OPEN PONTA DELGADA","OPEN PRAGAL","OPEN CADETES"]
[]
["Masculino","-60",1,115383,{"$f":"COUNTIF(D:D,D6)","v":1},"André Cravo",2000,"Lisboa","Universidade Lusofona de Humanidades de Tecnologias",{"$f":"SUM(L6:AP6)","v":130},{"$f":"COUNT(L6:AP6)","v":8},18,null,null,null,null,null,null,14,18,null,null,null,18,null,null,null,11,17,null,null,17,17]
["Masculino","-60",2,133642,1,"Bruno Barros",2001,"Santarém","Sport Clube Operário Cem Soldos",106,8,null,null,null,null,null,null,null,null,12,14,17,null,14,null,null,10,11,14,null,null,null,14]
["Masculino","-60",3,122694,1,"Daniel Stern",2000,"Lisboa","Judo Clube Lisboa",54,8,6,null,null,null,null,null,null,7,4,6,null,null,11,null,null,13,2,null,null,null,5]
["Masculino","-60",4,106720,1,"Jan Gleid",2000,"Setúbal","Judo Clube Pinhal Novo",45,8,null,null,null,null,null,13,null,1,null,2,9,null,null,null,null,7,1,11,null,null,1]
["Masculino","-60",5,126908,1,"Diogo Oliveira",2000,"Setúbal","Clube Recreativo Charnequense",40,8,null,null,null,null,null,8,null,2,4,null,null,null,3,null,null,6,4,5,null,null,null,8]
["Masculino","-60",6,111656,1,"José Farias",2000,"C.Branco","Academia de Judo de Castelo Branco",31,5,null,null,null,null,10,null,null,1,null,null,7,null,null,null,null,null,2,null,null,null,null,11]
["Masculino","-60",7,140006,1,"Fábio Borges",2000,"Lisboa","Sport Lisboa e Benfica",30,2,12,null,null,null,null,null,null,18]
["Masculino","-60",8,136842,1,"Diogo Santos",2000,"Porto","Escola Básica Dr. Costa Matos",25,5,null,null,null,7,null,null,null,null,1,null,null,9,null,7,null,null,1]
["Masculino","-60",9,114876,1,"Gonçalo Pascoal",2000,"Coimbra","Judo Clube Coimbra",25,7,null,null,null,null,null,null,6,1,null,null,null,6,null,6,null,1,1,null,null,null,null,4]
["Masculino","-60",10,128958,1,"Francisco Carmo",2002,"Lisboa","Escola de Judo Nuno Delgado",21,3,null,null,null,null,null,null,null,null,null,null,null,null,null,null,null,null,null,1,null,null,13,7]
["Masculino","-60",11,123691,1,"Ricardo Afonso",2000,"Setúbal","Academia de Instrução e Recreio Familiar Almadense",18,3,null,null,null,null,null,10,null,1,null,null,null,null,null,null,null,null,null,null,null,null,7]
["Masculino","-60",12,123066,1,"Rafael Chambel",2002,"Setúbal","Judo Clube Pinhal Novo",18,2,null,null,null,null,null,null,null,null,null,null,null,null,null,null,null,null,null,7,null,null,11]
["Masculino","-60",13,116835,1,"Tiago Barreiros",2001,"Leiria","Judo Clube Marinha Grande",16,4,null,null,null,null,null,null,null,null,1,null,null,null,1,null,null,null,3,null,null,null,null,11]
["Masculino","-60",14,123531,1,"Manuel Barbosa",2001,"Viseu","Clube de Judo de Viseu",14,6,null,null,null,3,null,null,null,1,null,null,1,3,null,4,null,2]
["Masculino","-60",15,137760,1,"João Fernandes",2000,"I. Terceira","Judo Clube São Carlos",14,2,null,null,null,null,null,null,null,null,null,null,null,null,null,null,7,null,null,null,null,null,7]
["Masculino","-60",16,129538,1,"Diogo Alves",2001,"Lisboa","Escola de Judo Nuno Delgado",13,4,2,null,null,null,null,null,null,null,null,7,3,null,1]
["Masculino","-60",17,126951,1,"Daniel Almeida",2001,"Setúbal","Externato Frei Luis de Sousa",13,2,null,null,null,null,null,null,null,null,null,null,null,null,null,null,null,null,null,2,null,null,11]
["Masculino","-60",18,134004,1,"João Patricio",2001,"Setúbal","CCD-Clube Judo Montijo",12,3,null,null,null,null,null,1,null,null,null,null,10,null,1]
["Masculino","-60",19,127809,1,"Guilherme Pereira",2001,"Lisboa","Sport Algés e Dafundo",12,2,null,null,null,null,null,null,null,null,null,null,null,null,null,null,null,null,null,11,null,null,1]
["Masculino","-60",20,139602,1,"Bruno Rego",2000,"Porto","Boavista Futebol Clube",10,4,null,null,null,null,null,null,null,null,2,null,null,6,null,1,null,null,1]
["Masculino","-60",21,122550,1,"Hugo Galamba",2001,"Lisboa","Clube Atletico da Alta de Lisboa",9,5,4,null,null,null,null,null,null,2,1,1,1]
["Masculino","-60",22,125942,1,"João Sanches",2000,"Lisboa","Sport Algés e Dafundo",9,4,1,null,null,null,null,null,null,null,null,3,3,null,null,null,null,null,2]
["Masculino","-60",23,127582,1,"Pedro Gonçalves",2000,"Algarve","Judo Clube Albufeira",9,4,null,null,null,null,null,4,null,1,null,2,null,null,2]
["Masculino","-60",24,116178,1,"Frederico Espirito Santo",2001,"Lisboa","Sport Algés e Dafundo",9,3,null,null,null,null,null,null,null,null,null,1,7,null,null,null,null,null,1]
["Masculino","-60",25,124094,1,"Diogo Santos",2000,"Lisboa","Construções Norte Sul",8,1,8]
["Masculino","-60",26,146696,1,"Francisco Amaral",2001,"C.Branco","Sport Tortosendo e Benfica",8,3,null,null,null,null,6,null,null,1,null,null,1]
["Masculino","-60",27,114740,1,"Guilherme Souza",2001,"Setúbal","Vitória Futebol Clube",8,2,null,null,null,null,null,null,null,null,6,null,null,null,null,null,null,null,2]
["Masculino","-60",28,133069,1,"Tomás Fernandes",2001,"Lisboa","Sporting Clube de Portugal",8,2,null,null,null,null,null,null,null,null,null,null,null,null,null,null,null,null,null,7,null,null,1]
["Masculino","-60",29,113228,1,"João Ramalho",2000,"Lisboa","Assc.Ed Fis.Deso Torres Vedras",7,2,3,null,null,null,null,null,null,null,null,4]
["Masculino","-60",30,139485,1,"Candido Rocha",2000,"Açores","Clube de Judo Ramo Grande",7,3,null,null,5,null,null,null,null,1,null,null,null,null,1]
["Masculino","-60",31,119839,1,"Pedro Pinheiro",2001,"Aveiro","Sport Clube Beira Mar",7,4,null,null,null,null,null,null,null,null,null,1,4,null,null,1,null,null,1]
["Masculino","-60",32,110652,1,"Leonardo Coelho",2001,"Lisboa","Ginásio Clube Portugues",6,3,3,null,null,null,null,null,null,null,null,2,null,null,null,null,1]
["Masculino","-60",33,104205,{"$f":"COUNTIF(D:D,D38)","v":1},"Gonçalo Silva",2000,"Lisboa","Clube Judo Total",{"$f":"SUM(L38:AP38)","v":6},{"$f":"COUNT(L38:AP38)","v":3},1,null,null,null,null,null,null,null,null,null,null,null,1,null,null,null,null,4]
["Masculino","-60",34,124229,1,"Maxim Guneniuc",2001,"Lisboa","Clube Atletico da Alta de Lisboa",6,3,null,null,null,null,null,null,null,null,null,null,null,null,null,null,null,null,null,1,null,null,4,1]
["Masculino","-60",35,122672,1,"João Santos",2001,"Lisboa","Judo Clube Lisboa",5,2,2,null,null,null,null,null,null,null,null,null,null,null,3]
["Masculino","-60",36,117570,1,"Sebastião Oliveira",2001,"Lisboa","Sport Algés e Dafundo",5,3,1,null,null,null,null,null,null,null,null,1,null,null,null,null,null,null,3]
["Masculino","-60",37,144514,1,"Nuno Gomes",2001,"Aveiro","Clube Desportivo Feirense",5,4,null,null,null,1,null,null,null,1,1,null,null,null,null,null,null,null,null,null,null,null,null,2]
["Masculino","-60",38,125775,1,"Diogo Mendonça",2000,"Viseu","Judo Clube Viseu",5,3,null,null,null,1,null,null,null,2,2]
["Masculino","-60",39,138182,1,"Diogo Gama",2001,"Portalegre","Casa do Povo de Campo Maior",5,1,null,null,null,null,5]
["Masculino","-60",40,141956,1,"Manuel Brandão",2000,"Portalegre","Casa do Povo de Castelo de Vide",5,2,null,null,null,null,4,null,null,null,null,null,1]
["Masculino","-60",41,130380,1,"André Mira",2001,"Setúbal","Vitoria Futebol Clube",5,2,null,null,null,null,null,4,null,null,null,null,null,null,1]
["Masculino","-60",42,124387,1,"Simão Pereira",2001,"Leiria","Judo Clube Marinha Grande",5,3,null,null,null,null,null,null,2,2,null,1]
["Masculino","-60",43,134391,1,"Daniel Fino",2001,"Setúbal","Vitória Futebol Clube",5,1,null,null,null,null,null,null,null,null,null,null,null,null,5]
["Masculino","-60",44,142406,1,"Filinto Carvalho",2000,"Açores","Clube Escolar Desp. da Escola Basica 2 3 Arrifes",5,1,null,null,null,null,null,null,null,null,null,null,null,null,null,null,null,null,null,null,null,5]
["Masculino","-60",45,139562,1,"Manuel Esteves",2001,"Lisboa","Sport Algés e Dafundo",4,4,1,null,null,null,null,null,null,null,null,1,1,null,null,null,null,null,1]
["Masculino","-60",46,139791,1,"Afonso Silva",2001,"Lisboa","Universidade Lusofona de Humanidades de Tecnologias",4,1,null,null,null,null,null,null,null,null,null,null,null,null,null,null,null,null,null,null,null,null,null,4]
["Masculino","-60",47,129183,1,"Miguel Martins",2001,"Lisboa","Colégio Moderno",3,3,1,null,null,null,null,null,null,null,null,1,null,null,1]
["Masculino","-60",48,137614,1,"Bruno Silva",2001,"Açores","Clube de Judo Angra do Heroismo",3,1,null,null,3]
["Masculino","-60",49,135779,1,"João Claro",2000,"Algarve","Clube Recreativo Alturense",3,1,null,null,null,null,null,3]
["Masculino","-60",50,112940,1,"Leandro Monteiro",2001,"Santarém","Clube de Judo Riachos",3,1,null,null,null,null,null,null,3]
["Masculino","-60",51,140816,1,"Diogo Silva",2000,"Porto","Boavista Futebol Clube",3,3,null,null,null,null,null,null,null,null,1,null,null,1,null,1]
["Masculino","-60",52,118910,1,"Gonçalo Costa",2001,"Coimbra","Judo Clube de Barcelos - JUBA",3,2,null,null,null,null,null,null,null,null,null,2,null,1]
["Masculino","-60",53,119495,1,"Rui Jorge",2001,"Coimbra","Associação Académica de Coimbra",3,1,null,null,null,null,null,null,null,null,null,null,null,null,null,null,null,3]
["Masculino","-60",54,137622,1,"João Lopes",2001,"Porto","Boavista Futebol Clube",3,1,null,null,null,null,null,null,null,null,null,null,null,3]
["Masculino","-60",55,135257,1,"Miguel Louzeiro",2000,"Lisboa","Ginásio Clube Portugues",3,1,null,null,null,null,null,null,null,null,null,null,null,null,null,null,3]
["Masculino","-60",56,122995,1,"Pedro Sousa",2000,"Viseu","Judo Clube Viseu",3,1,null,null,null,null,null,null,null,null,null,null,null,null,null,null,null,null,null,3]
["Masculino","-60",57,112302,1,"Mauro Faria",2002,"Madeira","Clube Naval do Funchal",3,1,null,null,null,null,null,null,null,null,null,null,null,null,null,null,null,null,null,3]
["Masculino","-60",58,113139,1,"Diogo Ferreira",2001,"Lisboa","Colégio Marista de Carcavelos",2,1,2]
["Masculino","-60",59,114851,1,"Rafael Matos",2001,"Lisboa","Judo Clube Sintra",2,2,1,null,null,null,null,null,null,null,null,null,null,null,null,null,null,null,null,1]
["Masculino","-60",60,131546,1,"Pedro Navalhas",2001,"Lisboa","Academia de Judo da Amadora",2,2,1,null,null,null,null,null,null,null,null,1]
["Masculino","-60",61,113104,1,"Jorge Costa",2001,"Portalegre","Centro Popular Trab. Bairro da Boa Fé",2,1,null,null,null,null,2]
["Masculino","-60",62,133421,1,"Pedro Rocha",2001,"C.Branco","Atlético Clube Fundanense",2,2,null,null,null,null,1,null,null,null,null,null,1]
["Masculino","-60",63,118230,1,"Tomás Góis",2001,"Algarve","Judo Clube do Algarve",2,1,null,null,null,null,null,2]
["Masculino","-60",64,119509,1,"Francisco Gomes",2001,"Setúbal","Externato Frei Luis de Sousa",2,1,null,null,null,null,null,2]
["Masculino","-60",65,120756,{"$f":"COUNTIF(D:D,D70)","v":1},"Gonçalo Rodrigues",2001,"Coimbra","Judo Clube de Barcelos - JUBA",{"$f":"SUM(L70:AP70)","v":2},{"$f":"COUNT(L70:AP70)","v":2},null,null,null,null,null,null,null,null,1,null,null,1]
["Masculino","-60",66,145205,1,"João Pinto",2000,"Setúbal","Academia Chushin Associação",2,2,null,null,null,null,null,null,null,null,null,null,1,null,1]
["Masculino","-60",67,131767,1,"Francisco Gil",2001,"Lisboa","Grupo Desportivo Gonçalvinhense",2,2,null,null,null,null,null,null,null,null,null,null,null,null,1,null,null,1]
["Masculino","-60",68,117592,1,"Jonas Mendonça",2000,"Lisboa","ISJudo Associação",2,2,null,null,null,null,null,null,null,null,null,null,null,null,null,null,null,null,null,1,null,null,null,1]
["Masculino","-60",69,147173,1,"Antonio Murias",2001,"Lisboa","Academia de Judo da Amadora",2,2,null,null,null,null,null,null,null,null,null,null,null,null,null,null,null,null,null,1,null,null,1]
["Masculino","-60",70,141832,1,"Alexandre Gitanu",2001,"Setúbal","Externato Frei Luis de Sousa",2,2,null,null,null,null,null,null,null,null,null,null,null,null,null,null,null,null,null,1,null,null,1]
["Masculino","-60",71,136912,1,"Renato Palhinhas",2000,"Lisboa","Centro Shotokai de Queluz",2,2,null,null,null,null,null,null,null,null,null,null,null,null,null,null,null,null,null,1,null,null,1]
["Masculino","-60",72,109407,1,"Diogo Luis",2000,"Setúbal","Judo Clube Pinhal Novo",2,1,null,null,null,null,null,null,null,null,null,null,null,null,null,null,null,null,null,null,null,null,2]
["Masculino","-60",73,132175,1,"Martim Guibert",2002,"Lisboa","Judo Clube Portugal",2,1,null,null,null,null,null,null,null,null,null,null,null,null,null,null,null,null,null,null,null,null,2]
["Masculino","-60",74,137546,1,"Manuel Ferreira",2001,"Açores","Judo Clube Ponta Delgada",2,1,null,null,null,null,null,null,null,null,null,null,null,null,null,null,null,null,null,null,null,2]
["Masculino","-60",75,115483,1,"Gonçalo Mortágua",2001,"Coimbra","Escola de Judo de Coimbra",2,1,null,null,null,null,null,null,null,null,null,null,null,null,null,null,null,null,null,null,null,null,null,2]
["Masculino","-60",76,143429,1,"Luis Araújo",2002,"Braga","Casa do Povo de Ronfe",2,1,null,null,null,null,null,null,null,null,null,null,null,null,null,null,null,null,null,null,null,null,null,2]
["Masculino","-60",77,112185,1,"José Marques",2001,"Lisboa","Escola de Judo Nuno Delgado",1,1,1]
["Masculino","-60",78,135240,1,"Rodrigo Costa",2001,"Lisboa","Universidade Lusofona de Humanidades de Tecnologias",1,1,1]
["Masculino","-60",79,114313,1,"João Águas",2000,"Lisboa","Universidade Lusofona de Humanidades de Tecnologias",1,1,1]
["Masculino","-60",80,117288,1,"Pedro Matos",2001,"Lisboa","Sport Algés e Dafundo",1,1,1]
["Masculino","-60",81,145873,1,"André Pamplona",2001,"I.Terceira","Clube de Judo Praia da Vitória",1,1,null,null,1]
["Masculino","-60",82,110298,1,"Guilherme Rodrigres",2001,"Portalegre","Eléctrico Futebol Clube",1,1,null,null,null,null,1]
["Masculino","-60",83,137887,1,"Tiago Gonçalves",2002,"Setúbal","Judo Clube Pragal",1,1,null,null,null,null,null,1]
["Masculino","-60",84,136215,1,"Miguel Luis",2000,"Santarém","Judo Clube Salvaterra de Magos",1,1,null,null,null,null,null,null,1]
["Masculino","-60",85,126706,1,"Ricardo Santos",2000,"Porto","Escola Secundária Fontes Pereira de Melo",1,1,null,null,null,null,null,null,null,null,1]
["Masculino","-60",86,145987,1,"Diogo Sobral",2000,"Beja","Associação Bombeiros Voluntários de Beja",1,1,null,null,null,null,null,null,null,null,null,1]
["Masculino","-60",87,119239,1,"João Matos",2000,"Setúbal","Grupo de Amigos da Costa da Caparica",1,1,null,null,null,null,null,null,null,null,null,null,null,null,null,1]
["Masculino","-60",88,144439,1,"Pedro Costa",2002,"Lisboa","Judo Clube de Lisboa",1,1,null,null,null,null,null,null,null,null,null,null,null,null,null,null,null,null,null,1]
["Masculino","-60",89,120199,1,"João Garcês",2002,"Lisboa","Universidade Lusofona de Humanidades de Tecnologias",1,1,null,null,null,null,null,null,null,null,null,null,null,null,null,null,null,null,null,1]
["Masculino","-60",90,143706,1,"Alexandrino Gomes",2001,"Lisboa","Sport Lisboa e Benfica",1,1,null,null,null,null,null,null,null,null,null,null,null,null,null,null,null,null,null,1]
["Masculino","-60",91,127433,1,"Luis Aldeia",2000,"Lisboa","Oficinas São José",1,1,null,null,null,null,null,null,null,null,null,null,null,null,null,null,null,null,null,1]
["Masculino","-60",92,134138,1,"Diogo Guerreiro",2001,"Algarve","Judo Clube do Algarve",1,1,null,null,null,null,null,null,null,null,null,null,null,null,null,null,null,null,null,null,null,null,1]
["Masculino","-60",93,145350,1,"Tomás Gonçalves",2002,"Setúbal","Grupo Desportivo Fabril do Barreiro",1,1,null,null,null,null,null,null,null,null,null,null,null,null,null,null,null,null,null,null,null,null,1]
["Masculino","-60",94,145729,1,"João Gregório",2002,"C.Branco","Escola de Judo Ana Hormigo",1,1,null,null,null,null,null,null,null,null,null,null,null,null,null,null,null,null,null,null,null,null,null,1]
["Masculino","-60",95,120736,1,"André Morgado",2002,"Santarém","Clube de Judo de Riachos",1,1,null,null,null,null,null,null,null,null,null,null,null,null,null,null,null,null,null,null,null,null,null,1]
["Masculino","-60",96,116969,1,"Manuel Mega",2002,"C.Branco","Academia de Judo de Castelo Branco",1,1,null,null,null,null,null,null,null,null,null,null,null,null,null,null,null,null,null,null,null,null,null,1]
["Masculino","-60",97,124821,{"$f":"COUNTIF(D:D,D102)","v":1},"Bernardo Vasconcelos",2002,"Santarém","Sporting Clube de Tomar",{"$f":"SUM(L102:AP102)","v":1},{"$f":"COUNT(L102:AP102)","v":1},null,null,null,null,null,null,null,null,null,null,null,null,null,null,null,null,null,null,null,null,null,1]
["Masculino","-60",98,120262,1,"Pedro Lopes",2002,"Lisboa","Colégio de Santo André",1,1,null,null,null,null,null,null,null,null,null,null,null,null,null,null,null,null,null,null,null,null,null,1]
["Masculino","-60",99,148267,1,"Luiz Ferreira",2000,"Lisboa","Universidade Lusofona de Humanidades de Tecnologias",1,1,null,null,null,null,null,null,null,null,null,null,null,null,null,null,null,null,null,null,null,null,null,1]
["Masculino","-60",100,141770,1,"Marcelo Caetano",2002,"Coimbra","Associação Académica de Coimbra",1,1,null,null,null,null,null,null,null,null,null,null,null,null,null,null,null,null,null,null,null,null,null,1]
["Masculino","-60",101,132980,1,"Marco Guedes",2000,"Braga","Associação Desportiva e Cultural Manhente",1,1,null,null,null,null,null,null,null,null,null,null,null,null,null,null,null,null,null,null,null,null,null,1]
["Masculino","-60",102,null,0,null,null,null,null,0,0]
["Masculino","-60",103,null,0,null,null,null,null,0,0]
["Masculino","-60",104,null,0,null,null,null,null,0,0]
["Masculino","-60",105,null,0,null,null,null,null,0,0]
["Masculino","-60",106,null,0,null,null,null,null,0,0]
["Masculino","-60",107,null,0,null,null,null,null,0,0]
["Masculino","-60",108,null,0,null,null,null,null,0,0]

{"sheet":"-66","index":6,"n_rows":114,"n_cols":33,"rows_kept":114,"cut":false,"hidden":false,"merged":[]}
[null,null,null,null,null,null,null,null,"CADETES"]
[null,null,null,null,null,null,null,null,"-66KG ",null,null,"LISBOA","MADEIRA","AÇORES","NORTE","CENTRO-SUL","SUL","CENTRO","FPJ","PORTO","LISBOA","CASTELO BRANCO","COIMBRA","SETÚBAL","VIANA CASTELO","I.TERCEIRA","COIMBRA","SANTARÉM","LISBOA","MADEIRA","AÇORES","SETÚBAL","COIMBRA"]
[null,null,null,null,null,null,null,null,null,null,null,"2016-01-09","2016-01-16","2016-01-16","2016-01-16","2016-01-16","2016-01-16","2016-01-17","2016-01-31","2016-04-02","2016-04-09","2016-04-17","2016-04-30","2016-04-30","2016-06-18","2016-06-25","2016-06-26","2016-07-03","2016-10-22","2016-11-12","2016-11-19","2016-11-19","2016-12-17"]
["Género","Categoria",null,"LF",null,"NOME","Ano de Nascimento","Associação","CLUBE","Somatório Pontos","Número de provas","Camp. Zonal CADETES","Camp. Zonal CADETES","Camp. Zonal CADETES","Camp. Zonal CADETES","Camp. Zonal CADETES","Camp. Zonal CADETES","Camp. Zonal CADETES","Camp.Nac. Cadetes","OPEN CADETES","OPEN CADETES","OPEN MESTRE ANTONIO MORAIS","OPEN INT. CIDADE BARCELOS","OPEN MONTIJO CADETES","OPEN INT. CIDADE DE VALENÇA","TORNEIO DE SÃO JOÃO","TAÇA ANTONIO ALEIXO","OPEN INT. ADJ SANTARÉM","OPEN CADETES","OPEN CADETES","OPEN PONTA DELGADA","OPEN PRAGAL","OPEN CADETES"]
[]
["Masculino","-66",1,113256,{"$f":"COUNTIF(D:D,D6)","v":1},"Gonçalo Lopes",2000,"Lisboa","Universidade Lusofona de Humanidades de Tecnologias",{"$f":"SUM(L6:AP6)","v":90},{"$f":"COUNT(L6:AP6)","v":9},10,null,null,null,null,null,null,5,null,2,17,null,18,null,null,null,18,1,null,null,2,17]
["Masculino","-66",2,112792,1,"Manuel Rodrigues",2000,"Setúbal","Judo Clube do Pragal",70,5,null,null,null,null,null,13,null,14,18,null,null,null,14,null,null,null,11]
["Masculino","-66",3,112253,1,"Jaques Rico",2001,"Lisboa","Judo Clube Lisboa",60,10,1,null,null,null,null,null,null,null,2,1,6,null,1,null,null,13,1,14,null,null,14,7]
["Masculino","-66",4,108074,1,"Francisco Rovira",2001,"Coimbra","Associação Academica de Coimbra",49,7,null,null,null,null,null,null,12,2,11,1,null,13,null,null,null,8,2]
["Masculino","-66",5,140006,1,"Fábio Borges",2000,"Lisboa","Sport Lisboa e Benfica",49,3,null,null,null,null,null,null,null,null,null,null,null,null,null,null,null,null,null,18,null,null,18,13]
["Masculino","-66",6,117758,1,"Pedro Costa",2000,"Lisboa","Universidade Lusofona de Humanidades de Tecnologias",33,7,4,null,null,null,null,null,null,2,null,2,null,null,null,null,null,null,1,11,null,null,2,11]
["Masculino","-66",7,135257,1,"Miguel Louzeiro",2000,"Lisboa","Ginásio Clube Portugues",33,5,3,null,null,null,null,null,null,null,null,3,null,null,7,null,null,null,null,8,null,null,null,12]
["Masculino","-66",8,140085,1,"Bernardo Lopes",2001,"Setúbal","Clube Recreativo Charnequense",32,7,null,null,null,null,null,null,null,null,2,1,null,null,5,null,null,3,5,5,null,null,11]
["Masculino","-66",9,114520,1,"João Camara",2000,"Lisboa","Universidade Lusofona de Humanidades de Tecnologias",23,4,1,null,null,null,null,null,null,null,7,5,10]
["Masculino","-66",10,123255,1,"Diogo Pinto",2002,"Braga","ARCAP - Associação Recreativa e Cultural \"Amigos da Ponte\"",21,2,null,null,null,13,null,null,null,8]
["Masculino","-66",11,127126,1,"André Gonçalves",2000,"C.Branco","Escola de Judo Ana Hormigo",19,4,null,null,null,null,7,null,null,2,null,null,4,null,null,null,null,null,6]
["Masculino","-66",12,142280,1,"Diogo Oliveira",2000,"Braga","Casa do Povo de Ronfe",16,5,null,null,null,6,null,null,null,1,1,null,null,2,null,6]
["Masculino","-66",13,133090,1,"Bruno Costa",2001,"Braga","Associação Desportiva e Cultural Manhente",15,5,null,null,null,2,null,null,null,null,2,null,null,1,null,7,null,null,3]
["Masculino","-66",14,125942,1,"João Sanches",2000,"Lisboa","Sport Algés e Dafundo",13,2,null,null,null,null,null,null,null,null,null,null,null,null,null,null,null,null,null,2,null,null,11]
["Masculino","-66",15,126908,1,"Diogo Oliveira",2000,"Setúbal","Clube Recreativo Charnequense",13,2,null,null,null,null,null,null,null,null,null,null,null,null,null,null,null,null,null,null,null,null,7,6]
["Masculino","-66",16,133078,1,"Damian Troianschi",2000,"Lisboa","ISJudo Associação",12,6,1,null,null,null,null,null,null,null,null,3,1,null,2,null,null,4,1]
["Masculino","-66",17,130799,1,"Francisco Rocha",2001,"V.Castelo","Clube de Judo da Trofa",12,2,null,null,null,2,null,null,null,null,null,null,null,10]
["Masculino","-66",18,115513,1,"Henrique Castro",2000,"Coimbra","Judo Clube Coimbra",12,4,null,null,null,null,null,null,6,3,null,null,null,null,null,1,null,2]
["Masculino","-66",19,121148,1,"Miguel Bettencourt",2000,"Açores","Clube de Judo Angra do Heroismo",11,2,null,null,8,null,null,null,null,3]
["Masculino","-66",20,110923,1,"Alexandre Loureiro",2000,"Setúbal","Academia de Instrução e Recreio Familiar Almadense",10,2,null,null,null,null,null,9,null,1]
["Masculino","-66",21,128267,1,"António Tetino",2001,"Lisboa","Escola de Judo Nuno Delgado",9,2,7,null,null,null,null,null,null,2]
["Masculino","-66",22,143685,1,"Vasco Rego",2000,"Braga","Casa do Povo de Ronfe",9,5,null,null,null,1,null,null,null,null,1,null,null,2,null,4,null,null,null,null,null,null,null,1]
["Masculino","-66",23,132177,1,"Pedro Raposo",2002,"Lisboa","Clube Atletico da Alta de Lisboa",9,3,null,null,null,null,null,null,null,null,null,null,null,null,null,null,null,null,null,3,null,null,4,2]
["Masculino","-66",24,113258,1,"Ricardo Venâncio",2002,"Lisboa","Sporting Clube de Portugal",8,2,null,null,null,null,null,null,null,null,null,null,null,null,null,null,null,null,null,null,null,null,6,2]
["Masculino","-66",25,140329,1,"Gonçalo Gaião",2000,"Algarve","Judo Clube Albufeira",7,3,null,null,null,null,null,2,null,null,null,1,null,null,4]
["Masculino","-66",26,141629,1,"Francisco Querido",2000,"Coimbra","Associação Recreativa de São Miguel",6,6,null,null,null,null,null,null,1,null,1,null,1,null,null,1,null,1,null,null,null,null,null,1]
["Masculino","-66",27,117288,1,"Pedro Matos",2001,"Lisboa","Sport Algés e Dafundo",6,3,null,null,null,null,null,null,null,null,null,null,2,null,null,null,null,null,1,3]
["Masculino","-66",28,129183,1,"Miguel Martins",2001,"Lisboa","Colégio Moderno",6,2,null,null,null,null,null,null,null,null,null,null,null,null,null,null,null,null,null,1,null,null,null,5]
["Masculino","-66",29,113899,1,"João Vera",2001,"Lisboa","Colégio Marista de Carcavelos",5,3,2,null,null,null,null,null,null,null,null,1,null,null,null,null,null,null,null,null,null,null,2]
["Masculino","-66",30,112312,1,"Afonso Sarnadas",2000,"Portalegre","Ass. Desp. Judo Clube Portalegre",5,1,null,null,null,null,5]
["Masculino","-66",31,137707,1,"Manuel Medeiros",2000,"Açores","Clube de Judo Angra do Heroismo",5,2,null,null,4,null,null,null,null,1]
["Masculino","-66",32,140816,1,"Diogo Silva",2000,"Porto","Boavista Futebol Clube",5,2,null,null,null,4,null,null,null,1]
["Masculino","-66",33,106786,{"$f":"COUNTIF(D:D,D38)","v":1},"Daniel Silva",2000,"Setúbal","Externato Frei Luis de Sousa",{"$f":"SUM(L38:AP38)","v":5},{"$f":"COUNT(L38:AP38)","v":3},null,null,null,null,null,1,null,null,null,2,null,null,2]
["Masculino","-66",34,134286,1,"Diogo Vitorino",2000,"Setúbal","Sociedade Filarmonica União Agricola",5,4,null,null,null,null,null,1,null,null,null,1,2,null,1]
["Masculino","-66",35,141625,1,"Diogo Silva",2000,"Coimbra","Judo Clube Barcelos - JUBA",5,5,null,null,null,null,null,null,1,null,1,1,null,1,null,1]
["Masculino","-66",36,110652,1,"Leonardo Coelho",2001,"Lisboa","Ginásio Clube Portugues",5,3,null,null,null,null,null,null,null,null,null,null,null,null,1,null,null,null,null,1,null,null,null,3]
["Masculino","-66",37,148267,1,"Luiz Ferreira",2000,"Lisboa","Universidade Lusofona de Humanidades de Tecnologias",5,3,null,null,null,null,null,null,null,null,null,null,null,null,null,null,null,null,1,2,null,null,2]
["Masculino","-66",38,131492,1,"Diogo Maia",2001,"V.Castelo","Clube de Judo da Trofa",5,2,null,null,null,null,null,null,null,null,null,null,null,4,null,1]
["Masculino","-66",39,125900,1,"Miguel Francisco",2000,"Lisboa","Escola de Judo Nuno Delgado",4,2,3,null,null,null,null,null,null,1]
["Masculino","-66",40,116268,1,"Simão Zucchelli",2001,"Lisboa","Colégio Marista de Carcavelos",4,3,1,null,null,null,null,null,null,null,null,1,null,null,null,null,null,null,null,2]
["Masculino","-66",41,136323,1,"Maurits Kuipers",2000,"Lisboa","Oficinas São José",4,4,1,null,null,null,null,null,null,null,null,1,null,null,1,null,null,null,null,null,null,null,1]
["Masculino","-66",42,139233,1,"Heorhil Ilyuk",2000,"Setúbal","Vitoria Futebol Clube",4,1,null,null,null,null,null,4]
["Masculino","-66",43,119561,1,"Paulo Cortesão",2001,"Coimbra","Escola de Judo de Coimbra",4,3,null,null,null,null,null,null,1,null,null,null,1,null,null,null,null,2]
["Masculino","-66",44,124387,1,"Simão Pereira",2001,"Leiria","Judo Clube Marinha Grande",4,3,null,null,null,null,null,null,null,null,1,null,null,null,2,null,null,1]
["Masculino","-66",45,119509,1,"Francisco Gomes",2001,"Setúbal","Externato Frei Luis de Sousa",4,4,null,null,null,null,null,null,null,null,null,1,null,null,1,null,null,null,null,1,null,null,1]
["Masculino","-66",46,117570,1,"Sebastião Oliveira",2001,"Lisboa","Sport Algés e Dafundo",4,2,null,null,null,null,null,null,null,null,null,null,null,null,null,null,null,null,null,1,null,null,3]
["Masculino","-66",47,141265,1,"Diogo Fernandes",2001,"Lisboa","Escola de Judo Nuno Delgado",3,3,1,null,null,null,null,null,null,null,null,null,null,null,1,null,null,null,1]
["Masculino","-66",48,114617,1,"Tomás Apolinário",2000,"Lisboa","Judo Clube Sintra",3,2,1,null,null,null,null,null,null,null,null,null,null,null,null,null,null,null,null,2]
["Masculino","-66",49,108460,1,"Marco Geraldes",2000,"Lisboa","Escola de Judo Nuno Delgado",3,2,1,null,null,null,null,null,null,null,null,2]
["Masculino","-66",50,127355,1,"Diogo Luango",2001,"Portalegre","Centro Popular Trab. Bairro da Boa Fé",3,1,null,null,null,null,3]
["Masculino","-66",51,124016,1,"Pedro Barreno",2001,"Lisboa","União Mucifalense",3,3,null,null,null,null,null,null,null,null,null,null,null,null,1,null,null,null,1,null,null,null,1]
["Masculino","-66",52,116178,1,"Frederico Espirito Santo",2001,"Lisboa","Sport Algés e Dafundo",3,2,null,null,null,null,null,null,null,null,null,null,null,null,null,null,null,null,null,2,null,null,1]
["Masculino","-66",53,113139,1,"Diogo Ferreira",2001,"Lisboa","Colégio Marista de Carcavelos",3,2,null,null,null,null,null,null,null,null,null,null,null,null,null,null,null,null,null,1,null,null,2]
["Masculino","-66",54,113412,1,"Bruno Alves",2000,"Lisboa","Judo Clube de Sintra",2,1,2]
["Masculino","-66",55,113414,1,"João Bochecha",2000,"Lisboa","Sport Algés e Dafundo",2,2,1,null,null,null,null,null,null,null,null,null,1]
["Masculino","-66",56,145016,1,"Pedro Ferreira",2001,"C.Branco","Sport Tortosendo e Benfica",2,2,null,null,null,null,1,null,null,null,null,null,1]
["Masculino","-66",57,138632,1,"Elson Cunha",2000,"I.Terceira","Judo Clube São Carlos",2,1,null,null,2]
["Masculino","-66",58,135531,1,"Rui Perdigoto",2000,"Coimbra","Associação Cristã da Mocidade Coimbra",2,1,null,null,null,null,null,null,2]
["Masculino","-66",59,133279,1,"Diogo Alves",2001,"Leiria","Judo Clube Marinha Grande",2,1,null,null,null,null,null,null,2]
["Masculino","-66",60,130380,1,"André Mira",2001,"Setúbal","Vitoria Futebol Clube",2,1,null,null,null,null,null,null,null,null,null,null,null,null,null,null,null,null,2]
["Masculino","-66",61,135240,1,"Rodrigo Costa",2001,"Lisboa","Universidade Lusofona de Humanidades de Tecnologias",2,2,null,null,null,null,null,null,null,null,null,null,null,null,null,null,null,null,null,1,null,null,null,1]
["Masculino","-66",62,123531,1,"Manuel Barbosa",2001,"Viseu","Clube de Judo de Viseu",2,2,null,null,null,null,null,null,null,null,null,null,null,null,null,null,null,null,null,1,null,null,null,1]
["Masculino","-66",63,139562,1,"Manuel Esteves",2001,"Lisboa","Sport Algés e Dafundo",2,1,null,null,null,null,null,null,null,null,null,null,null,null,null,null,null,null,null,2]
["Masculino","-66",64,118230,1,"Tomás Góis",2001,"Algarve","Judo Clube do Algarve",2,1,null,null,null,null,null,null,null,null,null,null,null,null,null,null,null,null,null,null,null,null,2]
["Masculino","-66",65,144366,{"$f":"COUNTIF(D:D,D70)","v":1},"Martim Louzeiro",2002,"Lisboa","Ginásio Clube Portugues",{"$f":"SUM(L70:AP70)","v":2},{"$f":"COUNT(L70:AP70)","v":1},null,null,null,null,null,null,null,null,null,null,null,null,null,null,null,null,null,null,null,null,null,2]
["Masculino","-66",66,127433,1,"Luis Aldeia",2000,"Lisboa","Oficinas São José",1,1,1]
["Masculino","-66",67,131806,1,"Pedro Medeiros",2001,"Açores","Judo Clube Ponta Delgada",1,1,null,null,1]
["Masculino","-66",68,147172,1,"Daniel Ribeiro",2000,"Braga","Associação Desportiva e Cultural Manhente",1,1,null,null,null,1]
["Masculino","-66",69,119415,1,"Diogo Martins",2001,"Setúbal","Academia de Judo Barreiro",1,1,null,null,null,null,null,1]
["Masculino","-66",70,142352,1,"Eduardo Balutelu",2000,"Algarve","Judo Clube Portimão",1,1,null,null,null,null,null,1]
["Masculino","-66",71,113001,1,"Lucas Rosa",2001,"Leiria","Judo Clube Marinha Grande",1,1,null,null,null,null,null,null,1]
["Masculino","-66",72,136089,1,"Tiago Lima",2001,"V.Castelo","Associação Desportiva e Cultural Taiki-Budo",1,1,null,null,null,null,null,null,null,null,1]
["Masculino","-66",73,148551,1,"Yevhenii Penzenik",2000,"Lisboa","Judo Clube Lisboa",1,1,null,null,null,null,null,null,null,null,null,1]
["Masculino","-66",74,147173,1,"António Murias",2001,"Lisboa","Academia de Judo da Amadora",1,1,null,null,null,null,null,null,null,null,null,null,null,null,1]
["Masculino","-66",75,112940,1,"Leandro Monteiro",2001,"Santarém","Clube de Judo Riachos",1,1,null,null,null,null,null,null,null,null,null,null,null,null,null,null,null,1]
["Masculino","-66",76,141956,1,"Manuel Brandão",2000,"Portalegre","Casa do Povo de Castelo de Vide",1,1,null,null,null,null,null,null,null,null,null,null,null,null,null,null,null,1]
["Masculino","-66",77,143380,1,"Diogo Marques",2000,"Guarda","Associação Humanitária Bombeiros Voluntários de Gouveia",1,1,null,null,null,null,null,null,null,null,null,null,null,null,null,null,null,1]
["Masculino","-66",78,144854,1,"Hildebrando Mendes",2000,"Aveiro","Associação 4Judo Project",1,1,null,null,null,null,null,null,null,null,null,null,null,1]
["Masculino","-66",79,136215,1,"Miguel Luis",2000,"Santarém","Judo Clube Salvaterra de Magos",1,1,null,null,null,null,null,null,null,null,null,null,null,null,null,null,null,null,null,1]
["Masculino","-66",80,134391,1,"Daniel Fino",2001,"Setúbal","Vitória Futebol Clube",1,1,null,null,null,null,null,null,null,null,null,null,null,null,null,null,null,null,null,1]
["Masculino","-66",81,120774,1,"Gustavo Miranda",2002,"Madeira","Clube Naval do Funchal",1,1,null,null,null,null,null,null,null,null,null,null,null,null,null,null,null,null,null,1]
["Masculino","-66",82,125624,1,"Afonso Gonçalves",2002,"Madeira","Clube Naval do Funchal",1,1,null,null,null,null,null,null,null,null,null,null,null,null,null,null,null,null,null,1]
["Masculino","-66",83,131546,1,"Pedro Navalhas",2001,"Lisboa","Academia de Judo da Amadora",1,1,null,null,null,null,null,null,null,null,null,null,null,null,null,null,null,null,null,1]
["Masculino","-66",84,124070,1,"João Gonçalves",2002,"Lisboa","Escola de Judo Nuno Delgado",1,1,null,null,null,null,null,null,null,null,null,null,null,null,null,null,null,null,null,1]
["Masculino","-66",85,140994,1,"Miguel Moreira",2002,"Lisboa","Escola de Judo Nuno Delgado",1,1,null,null,null,null,null,null,null,null,null,null,null,null,null,null,null,null,null,null,null,null,1]
["Masculino","-66",86,139485,1,"Cândido Rocha",2000,"Açores","Judo Clube Ramo Grande",1,1,null,null,null,null,null,null,null,null,null,null,null,null,null,null,null,null,null,null,null,null,1]
["Masculino","-66",87,122311,1,"Eduardo Esteves",2000,"Santarém","Ateneu Artístico Cartaxense",1,1,null,null,null,null,null,null,null,null,null,null,null,null,null,null,null,null,null,null,null,null,null,1]
["Masculino","-66",88,148139,1,"André Soares",2001,"Aveiro","Clube Desportivo Feirense",1,1,null,null,null,null,null,null,null,null,null,null,null,null,null,null,null,null,null,null,null,null,null,1]
["Masculino","-66",89,109731,1,"João Mendes",2002,"C.Branco","Academia de Judo de Castelo Branco",1,1,null,null,null,null,null,null,null,null,null,null,null,null,null,null,null,null,null,null,null,null,null,1]
["Masculino","-66",90,144863,1,"Rui Martins",2001,"Santarém","Associação Académica e Desportiva de Rio Maior",1,1,null,null,null,null,null,null,null,null,null,null,null,null,null,null,null,null,null,null,null,null,null,1]
["Masculino","-66",91,149327,1,"João Amado",2000,"Coimbra","Montanha Clube",1,1,null,null,null,null,null,null,null,null,null,null,null,null,null,null,null,null,null,null,null,null,null,1]
["Masculino","-66",92,143167,1,"Fábio Veríssimo",2002,"Santarém","Grupro Recreativo 1º de Outubro de 1911",1,1,null,null,null,null,null,null,null,null,null,null,null,null,null,null,null,null,null,null,null,null,null,1]
["Masculino","-66",93,144862,1,"Ricardo Martins",2001,"Santarém","Associação Académica e Desportiva de Rio Maior",1,1,null,null,null,null,null,null,null,null,null,null,null,null,null,null,null,null,null,null,null,null,null,1]
["Masculino","-66",94,145594,1,"Gonçalo Correia",2001,"Aveiro","Associação Académica da Universidade de Aveiro",0,1,null,null,null,null,null,null,null,null,0]
["Masculino","-66",95,null,0,null,null,null,null,0,0]
["Masculino","-66",96,null,0,null,null,null,null,0,0]
["Masculino","-66",97,null,{"$f":"COUNTIF(D:D,D102)","v":0},null,null,null,null,{"$f":"SUM(L102:AP102)","v":0},{"$f":"COUNT(L102:AP102)","v":0}]
["Masculino","-66",98,null,0,null,null,null,null,0,0]
["Masculino","-66",99,null,0,null,null,null,null,0,0]
["Masculino","-66",100,null,0,null,null,null,null,0,0]
["Masculino","-66",101,null,0,null,null,null,null,0,0]
["Masculino","-66",102,null,0,null,null,null,null,0,0]
["Masculino","-66",103,null,0,null,null,null,null,0,0]
["Masculino","-66",104,null,0,null,null,null,null,0,0]
["Masculino","-66",105,null,0,null,null,null,null,0,0]
["Masculino","-66",106,null,0,null,null,null,null,0,0]
["Masculino","-66",107,null,0,null,null,null,null,0,0]
["Masculino","-66",108,null,0,null,null,null,null,0,0]
["Masculino","-66",109,null,0,null,null,null,null,0,0]

{"sheet":"-73","index":7,"n_rows":70,"n_cols":33,"rows_kept":70,"cut":false,"hidden":false,"merged":[]}
[null,null,null,null,null,null,null,null,"CADETES"]
[null,null,null,null,null,null,null,null,"-73KG ",null,null,"LISBOA","MADEIRA","AÇORES","NORTE","CENTRO-SUL","SUL","CENTRO","FPJ","PORTO","LISBOA","CASTELO BRANCO","COIMBRA","SETÚBAL","VIANA CASTELO","I.TERCEIRA","COIMBRA","SANTARÉM","LISBOA","MADEIRA","AÇORES","SETÚBAL","COIMBRA"]
[null,null,null,null,null,null,null,null,null,null,null,"2016-01-09","2016-01-16","2016-01-16","2016-01-16","2016-01-16","2016-01-16","2016-01-17","2016-01-31","2016-04-02","2016-04-09","2016-04-17","2016-04-30","2016-04-30","2016-06-18","2016-06-25","2016-06-26","2016-07-03","2016-10-22","2016-11-12","2016-11-19","2016-11-19","2016-12-17"]
["Género","Categoria",null,"LF",null,"NOME","Ano de Nascimento","Associação","CLUBE","Somatório Pontos","Número de provas","Camp. Zonal CADETES","Camp. Zonal CADETES","Camp. Zonal CADETES","Camp. Zonal CADETES","Camp. Zonal CADETES","Camp. Zonal CADETES","Camp. Zonal CADETES","Camp.Nac. Cadetes","OPEN CADETES","OPEN CADETES","OPEN MESTRE ANTONIO MORAIS","OPEN INT. CIDADE BARCELOS","OPEN MONTIJO CADETES","OPEN INT. CIDADE DE VALENÇA","TORNEIO DE SÃO JOÃO","TAÇA ANTONIO ALEIXO","OPEN INT. ADJ SANTARÉM","OPEN CADETES","OPEN CADETES","OPEN PONTA DELGADA","OPEN PRAGAL","OPEN CADETES"]
[]
["Masculino","-73",1,118793,{"$f":"COUNTIF(D:D,D6)","v":1},"Rodrigo Boavida",2001,"Viseu","Judo Clube Viseu",{"$f":"SUM(L6:AO6)","v":44},{"$f":"COUNT(L6:AP6)","v":10},null,null,null,6,null,null,null,1,3,null,7,3,null,1,null,7,7,3,null,null,null,6]
["Masculino","-73",2,128267,{"$f":"COUNTIF(D:D,D7)","v":1},"António Tetino",2001,"Lisboa","Escola de Judo Nuno Delgado",34,6,null,null,null,null,null,null,null,null,null,6,4,null,5,null,null,null,8,5,null,null,6]
["Masculino","-73",3,124234,1,"Ruben Melo",2001,"Lisboa","Clube Atlético da Alta de Lisboa",31,11,4,null,null,null,null,null,null,1,1,1,1,null,1,null,null,1,1,4,null,null,9,7]
["Masculino","-73",4,112121,1,"José Cardoso",2001,"Santarém","Sport Clube Operário Cem Soldos",28,4,null,null,null,null,null,null,1,null,7,10,10]
["Masculino","-73",5,123255,1,"Diogo Pinto",2002,"Braga","ARCAP - Associação Recreativa e Cultural \"Amigos da Ponte\"",27,3,null,null,null,null,null,null,null,null,10,null,null,5,null,12]
["Masculino","-73",6,133078,1,"Damian Troianschi",2000,"Lisboa","ISJudo Associação",27,3,null,null,null,null,null,null,null,null,null,null,null,null,null,null,null,null,null,10,null,null,7,10]
["Masculino","-73",7,108075,{"$f":"COUNTIF(D:D,D12)","v":1},"Vicente Rovira",2001,"Coimbra","Associação Académica de Coimbra",25,5,null,null,null,null,null,null,5,8,null,null,null,2,null,null,null,9,1]
["Masculino","-73",8,108191,1,"Afonso Carvalho",2000,"Porto","Clube de Judo do Porto",21,4,null,null,null,13,null,null,null,1,3,null,null,null,4]
["Masculino","-73",9,130507,1,"Pedro Severo",2000,"Setúbal","Externado Frei Luis de Sousa",20,5,null,null,null,null,null,6,null,3,null,1,null,null,6,null,null,null,null,null,null,null,4]
["Masculino","-73",10,124933,1,"João Afonso",2001,"Lisboa","Sport Algés e Dafundo",13,4,7,null,null,null,null,null,null,4,null,1,1]
["Masculino","-73",11,112792,1,"Manuel Rodrigues",2000,"Setúbal","Judo Clube do Pragal",13,1,null,null,null,null,null,null,null,null,null,null,null,null,null,null,null,null,null,null,null,null,13]
["Masculino","-73",12,139455,1,"Pedro Cavaco",2000,"Setúbal","Clube Recreativo Charnequense",12,6,null,null,null,null,null,2,null,1,1,4,null,null,1,null,null,null,null,null,null,null,null,3]
["Masculino","-73",13,108074,1,"Francisco Rovira",2001,"Coimbra","Associação Academica de Coimbra",12,1,null,null,null,null,null,null,null,null,null,null,null,null,null,null,null,null,null,null,null,null,null,12]
["Masculino","-73",14,137621,1,"Nuno Oliveira",2001,"Porto","Boavista Futebol Clube",11,6,null,null,null,3,null,null,null,1,1,null,null,1,null,4,null,null,1]
["Masculino","-73",15,114291,1,"Afonso Silva",2000,"Lisboa","Judo Clube Lisboa",11,3,null,null,null,null,null,null,null,3,null,7,null,null,1]
["Masculino","-73",16,125380,1,"Diogo Antunes",2001,"Lisboa","Sport Algés e Dafundo",10,4,4,null,null,null,null,null,null,1,null,null,2,null,null,null,null,null,3]
["Masculino","-73",17,134272,1,"Diogo Câmara",2000,"Açores","Clube Escolar Desp. Escola Basica de Arrifes",9,2,null,null,6,null,null,null,null,3]
["Masculino","-73",18,142250,1,"Pedro Meneses",2001,"Açores","Judo Clube Ramo Grande",9,4,null,null,4,null,null,null,null,1,null,null,null,null,3,null,null,null,null,null,null,null,1]
["Masculino","-73",19,120367,1,"Eduardo Silva",2001,"Porto","Boavista Futebol Clube",8,3,null,null,null,3,null,null,null,2,3]
["Masculino","-73",20,140719,1,"Miguel Piedade",2000,"Coimbra","Associação Cristã da Mocidade de Coimbra",7,2,null,null,null,null,null,null,3,null,null,null,null,null,null,null,null,null,null,null,null,null,null,4]
["Masculino","-73",21,127155,1,"João Novais",2001,"Santarém","Sporting Clube Tomar",7,5,null,null,null,null,null,null,1,null,null,2,1,null,null,null,null,null,null,2,null,null,null,1]
["Masculino","-73",22,114520,1,"João Camara",2000,"Lisboa","Universidade Lusofona de Humanidades de Tecnologias",7,1,null,null,null,null,null,null,null,null,null,null,null,null,null,null,null,null,null,7]
["Masculino","-73",23,115660,1,"Francisco Gomes",2000,"Portalegre","Ass. Desp Judo Clube Portalegre",6,2,null,null,null,null,5,null,null,1]
["Masculino","-73",24,131860,1,"Pedro Medeiros",2001,"Açores","Judo Clube Ponta Delgada",6,1,null,null,null,null,null,null,null,null,null,null,null,null,null,null,null,null,null,null,null,6]
["Masculino","-73",25,130824,1,"José Faria",2001,"Braga","ARCAP - Associação Recreativa e Cultural \"Amigos da Ponte\"",5,3,null,null,null,1,null,null,null,null,1,null,null,3]
["Masculino","-73",26,122230,1,"Afonso Neves",2001,"Algarve","Judo Clube do Algarve",5,2,null,null,null,null,null,4,null,1]
["Masculino","-73",27,117594,1,"André Pinto",2000,"Lisboa","ISJudo Associação",5,1,null,null,null,null,null,null,null,null,5]
["Masculino","-73",28,148796,1,"André Barbosa",2000,"V.Castelo","Clube de Judo da Trofa",5,2,null,null,null,null,null,null,null,null,null,null,null,4,null,1]
["Masculino","-73",29,120880,1,"Geraldo Pinto",2000,"V.Castelo","Judo Clube Valença",4,3,null,null,null,1,null,null,null,null,1,null,null,2]
["Masculino","-73",30,119532,1,"Simão Batista",2000,"Setúbal","Judo Clube do Pragal",4,3,null,null,null,null,null,null,null,2,1,null,null,null,1]
["Masculino","-73",31,116005,1,"Gonçalo Correia",2002,"Lisboa","Colégio Marista de Carcavelos",4,1,null,null,null,null,null,null,null,null,null,null,null,null,null,null,null,null,null,null,null,null,4]
["Masculino","-73",32,141647,1,"Ernesto Antunes",2000,"Açores","Judo Clube Ponta Delgada",4,1,null,null,null,null,null,null,null,null,null,null,null,null,null,null,null,null,null,null,null,4]
["Masculino","-73",33,113898,1,"Pedro Vera",2001,"Lisboa","Colégio Marista de Carcavelos",{"$f":"SUM(L38:AO38)","v":3},{"$f":"COUNT(L38:AP38)","v":2},2,null,null,null,null,null,null,1]
["Masculino","-73",34,137925,1,"Gonçalo Almeida",2000,"Lisboa","Judo Clube de Sintra",3,2,2,null,null,null,null,null,null,1]
["Masculino","-73",35,133279,1,"Diogo Alves",2001,"Leiria","Judo Clube Marinha Grande",3,3,null,null,null,null,null,null,null,null,1,null,null,null,1,null,null,1]
["Masculino","-73",36,135227,1,"Vitor Ferreira",2001,"Braga","Casa do Povo de Ronfe",3,3,null,null,null,null,null,null,null,null,1,null,null,1,null,1]
["Masculino","-73",37,147173,1,"António Murias",2001,"Lisboa","Academia de Judo da Amadora",2,2,1,null,null,null,null,null,null,null,null,1]
["Masculino","-73",38,124375,1,"João Medeiros",2001,"Açores","Clube de Judo Angra do Heroismo",2,1,null,null,2]
["Masculino","-73",39,139829,1,"André Ribeiro",2000,"Santarém","Sociedade Filarmónica Gualdim Pais",2,1,null,null,null,null,null,null,2]
["Masculino","-73",40,120318,1,"João André",2000,"Madeira","Grupo Desportivo APEL",2,1,null,null,null,null,null,null,null,2]
["Masculino","-73",41,144836,1,"Nuno Silva",2001,"Setúbal","Externado Frei Luis de Sousa",2,1,null,null,null,null,null,null,null,null,null,2]
["Masculino","-73",42,119296,1,"João Esteves",2001,"V.Castelo","Judo Clube Valença (Juvalença)",2,1,null,null,null,null,null,null,null,null,null,null,null,null,null,2]
["Masculino","-73",43,137383,1,"Miguel Colesnic",2001,"Algarve","Unbreakable Force - Associação Desportiva e Cultural",2,1,null,null,null,null,null,null,null,null,null,null,null,null,null,null,null,null,null,null,null,null,null,2]
["Masculino","-73",44,132215,1,"Tomás Malhão",2000,"Lisboa","ISJudo Associação",1,1,1]
["Masculino","-73",45,122471,1,"Tiago Anjos",2000,"Lisboa","Clube Atlético da Alta de Lisboa",1,1,1]
["Masculino","-73",46,123767,1,"Ivo Cruz",2001,"Lisboa","Assoc. Desp. Cul. Encarnação e Olivais",1,1,1]
["Masculino","-73",47,118106,1,"Francisco Brasil",2001,"I.Terceira","Clube de Judo Praia da Vitória",1,1,null,null,1]
["Masculino","-73",48,112908,1,"João Gonçalves",2001,"Algarve","Clube Recreativo Alturense",1,1,null,null,null,null,null,1]
["Masculino","-73",49,106833,1,"Tiago Barreto",2000,"Santarém","Clube de Judo Riachos",1,1,null,null,null,null,null,null,1]
["Masculino","-73",50,145008,1,"Ruben Santos",2000,"Leiria","Judo Clube Juncal",1,1,null,null,null,null,null,null,1]
["Masculino","-73",51,139971,1,"David Gomes",2001,"Santarém","Casa do Povo Rio Maior",1,1,null,null,null,null,null,null,1]
["Masculino","-73",52,137651,1,"Diogo Henriques",2000,"Santarém","Sporting Clube Tomar",1,1,null,null,null,null,null,null,1]
["Masculino","-73",53,112312,1,"Afonso Sarnadas",2000,"Portalegre","Ass. Desp. Judo Clube Portalegre",1,1,null,null,null,null,null,null,null,1]
["Masculino","-73",54,148481,1,"Filipe Fernandes",2001,"Setúbal","Clube Recreativo Charnequense",1,1,null,null,null,null,null,null,null,null,1]
["Masculino","-73",55,141893,{"$f":"COUNTIF(D:D,D60)","v":1},"Gonçalo Homem",2001,"Lisboa","Judo Clube de Sintra",1,1,null,null,null,null,null,null,null,null,null,1]
["Masculino","-73",56,144862,1,"Ricardo Martins",2001,"Santarém","Associação Académica e Desportiva de Rio Maior",1,1,null,null,null,null,null,null,null,null,null,null,null,null,1]
["Masculino","-73",57,144863,1,"Rui Martins",2001,"Santarém","Associação Académica e Desportiva de Rio Maior",1,1,null,null,null,null,null,null,null,null,null,null,null,null,1]
["Masculino","-73",58,130799,1,"Francisco Rocha",2001,"V.Castelo","Clube de Judo da Trofa",1,1,null,null,null,null,null,null,null,null,null,null,null,null,null,1]
["Masculino","-73",59,145857,1,"Hugo Batista",2001,"Lisboa","Clube Atlético de Campo de Ourique",1,1,null,null,null,null,null,null,null,null,null,null,null,null,null,null,null,null,null,1]
["Masculino","-73",60,147387,1,"Dinis Morgado",2002,"Lisboa","ISJudo Associação",1,1,null,null,null,null,null,null,null,null,null,null,null,null,null,null,null,null,null,null,null,null,1]
["Masculino","-73",61,113138,1,"Eduardo Rodrigues",2002,"Lisboa","Colégio Marista de Carcavelos",1,1,null,null,null,null,null,null,null,null,null,null,null,null,null,null,null,null,null,null,null,null,1]
["Masculino","-73",62,110652,1,"Leonardo Coelho",2001,"Lisboa","Ginásio Clube Portugues",1,1,null,null,null,null,null,null,null,null,null,null,null,null,null,null,null,null,null,null,null,null,1]
["Masculino","-73",63,145546,1,"Bruno Carlos",2001,"Açores","Judo Clube Ponta Delgada",1,1,null,null,null,null,null,null,null,null,null,null,null,null,null,null,null,null,null,null,null,1]
["Masculino","-73",64,135040,1,"Rodrigo Santos",2002,"C.Branco","Academia de Judo de Castelo Branco",1,1,null,null,null,null,null,null,null,null,null,null,null,null,null,null,null,null,null,null,null,null,null,1]
["Masculino","-73",65,148570,1,"Christian Fernandes",2000,"Coimbra","Montanha Clube",1,{"$f":"COUNT(L70:AP70)","v":1},null,null,null,null,null,null,null,null,null,null,null,null,null,null,null,null,null,null,null,null,null,1]

{"sheet":"-81","index":8,"n_rows":49,"n_cols":33,"rows_kept":49,"cut":false,"hidden":false,"merged":[]}
[null,null,null,null,null,null,null,null,"CADETES"]
[null,null,null,null,null,null,null,null,"-81KG ",null,null,"LISBOA","MADEIRA","AÇORES","NORTE","CENTRO-SUL","SUL","CENTRO","FPJ","PORTO","LISBOA","CASTELO BRANCO","COIMBRA","SETÚBAL","VIANA CASTELO","I.TERCEIRA","COIMBRA","SANTARÉM","LISBOA","MADEIRA","AÇORES","SETÚBAL","COIMBRA"]
[null,null,null,null,null,null,null,null,null,null,null,"2016-01-09","2016-01-16","2016-01-16","2016-01-16","2016-01-16","2016-01-16","2016-01-17","2016-01-31","2016-04-02","2016-04-09","2016-04-17","2016-04-30","2016-04-30","2016-06-18","2016-06-25","2016-06-26","2016-07-03","2016-10-22","2016-11-12","2016-11-19","2016-11-19","2016-12-17"]
["Género","Categoria",null,"LF",null,"NOME","Ano de Nascimento","Associação","CLUBE","Somatório de pontos","Número de provas","Camp. Zonal CADETES","Camp. Zonal CADETES","Camp. Zonal CADETES","Camp. Zonal CADETES","Camp. Zonal CADETES","Camp. Zonal CADETES","Camp. Zonal CADETES","Camp.Nac. Cadetes","OPEN CADETES","OPEN CADETES","OPEN MESTRE ANTONIO MORAIS","OPEN INT. CIDADE BARCELOS","OPEN MONTIJO CADETES","OPEN INT. CIDADE DE VALENÇA","TORNEIO DE SÃO JOÃO","TAÇA ANTONIO ALEIXO","OPEN INT. ADJ SANTARÉM","OPEN CADETES","OPEN CADETES","OPEN PONTA DELGADA","OPEN PRAGAL","OPEN CADETES"]
[]
["Masculino","-81",1,125732,{"$f":"COUNTIF(D:D,D6)","v":1},"Vitor Silva",2000,"Braga","Associação Desportiva e Cultural Manhente",{"$f":"SUM(L6:AO6)","v":45},{"$f":"COUNT(L6:AP6)","v":7},null,null,null,7,null,null,null,4,7,null,null,10,null,7,null,null,4,null,null,null,null,6]
["Masculino","-81",2,132782,1,"Bruno Pires",2000,"C.Branco","Escola de Judo Ana Hormigo",34,4,null,null,null,null,6,null,null,10,null,null,5,null,null,null,null,null,null,null,null,null,null,13]
["Masculino","-81",3,132681,1,"Marcelo Correia",2000,"Lisboa","Sport Lisboa e Benfica",22,4,6,null,null,null,null,null,null,null,null,null,null,null,null,null,null,null,null,3,null,null,7,6]
["Masculino","-81",4,129640,1,"Gustavo Monteiro",2000,"Porto","Boavista Futebol Clube",22,3,null,null,null,11,null,null,null,7,4]
["Masculino","-81",5,124933,1,"João Afonso",2001,"Lisboa","Sport Algés e Dafundo",17,2,null,null,null,null,null,null,null,null,null,null,null,null,null,null,null,null,null,7,null,null,10]
["Masculino","-81",6,111356,1,"Duarte Isabel",2000,"Santarém","Sporting Clube Tomar",14,4,null,null,null,null,null,null,6,1,null,3,4]
["Masculino","-81",7,112121,1,"José Cardoso",2001,"Santarém","Sport Clube Operário Cem Soldos",9,2,null,null,null,null,null,null,null,null,null,null,null,null,null,null,null,7,2]
["Masculino","-81",8,108075,1,"Vicente Rovira",2001,"Coimbra","Associação Académica de Coimbra",9,1,null,null,null,null,null,null,null,null,null,null,null,null,null,null,null,null,null,null,null,null,null,9]
["Masculino","-81",9,125066,1,"André Sousa",2000,"Lisboa","Sport Algés e Dafundo",7,3,4,null,null,null,null,null,null,2,null,1]
["Masculino","-81",10,120318,1,"João André",2000,"Madeira","Grupo Desportivo APEL",6,2,null,5,null,null,null,null,null,null,null,null,null,null,null,null,null,null,null,null,1]
["Masculino","-81",11,142899,1,"Francisco Alves",2000,"V.Castelo","Clube de Judo da Trofa",6,3,null,null,null,2,null,null,null,null,null,null,null,3,null,1]
["Masculino","-81",12,119296,1,"João Esteves",2001,"V.Castelo","Judo Clube Valença",6,4,null,null,null,3,null,null,null,1,1,null,null,1]
["Masculino","-81",13,134272,1,"Diogo Câmara",2000,"Açores","Clube Escolar Desp. Escola Basica de Arrifes",6,1,null,null,null,null,null,null,null,null,null,null,null,null,null,null,null,null,null,null,null,6]
["Masculino","-81",14,119298,1,"Hernâni Araújo",2000,"V.Castelo","Judo Clube Valença",5,3,null,null,null,1,null,null,null,null,1,null,null,3]
["Masculino","-81",15,119532,1,"Simão Batista",2000,"Setúbal","Judo Clube do Pragal",5,2,null,null,null,null,null,1,null,null,null,null,null,null,null,null,null,null,null,null,null,null,4]
["Masculino","-81",16,147300,1,"Diogo Matias",2001,"C.Branco","Sport Tortosendo e Benfica",4,3,null,null,null,null,1,null,null,2,null,null,1]
["Masculino","-81",17,142278,1,"Diogo Fernandes",2001,"Braga","Casa do Povo de Ronfe",4,3,null,null,null,null,null,null,null,null,2,null,null,1,null,1]
["Masculino","-81",18,134848,1,"Alexandre Soares",2002,"Coimbra","Associação Cristã da Mocidade de Coimbra",4,1,null,null,null,null,null,null,null,null,null,null,null,null,null,null,null,null,null,null,null,null,null,4]
["Masculino","-81",19,114523,{"$f":"COUNTIF(D:D,D24)","v":1},"Ricardo Fernandes",2001,"Lisboa","Sport Lisboa e Benfica",{"$f":"SUM(L24:AO24)","v":3},{"$f":"COUNT(L24:AP24)","v":1},3]
["Masculino","-81",20,115718,1,"António Rebelo",2002,"Leiria","Clube de Judo \"O Dragão\"",3,1,null,null,null,null,null,null,null,null,null,null,null,null,null,null,null,null,null,null,null,null,null,3]
["Masculino","-81",21,114291,{"$f":"COUNTIF(D:D,D26)","v":1},"Afonso Silva",2000,"Lisboa","Judo Clube Lisboa",{"$f":"SUM(L26:AO26)","v":2},{"$f":"COUNT(L26:AP26)","v":2},1,null,null,null,null,null,null,null,null,null,null,null,null,null,null,null,1]
["Masculino","-81",22,142905,1,"Luís Filipe",2000,"Porto","Escola Básica Dr. Costa Matos",2,2,null,null,null,1,null,null,null,null,1]
["Masculino","-81",23,148570,1,"Christian Fernandes",2000,"Coimbra","Montanha Clube",2,2,null,null,null,null,null,null,null,null,null,null,null,null,null,1,null,1]
["Masculino","-81",24,122230,1,"Afonso Neves",2001,"Algarve","Judo Clube do Algarve",2,1,null,null,null,null,null,null,null,null,null,null,null,null,null,null,null,null,null,null,null,null,2]
["Masculino","-81",25,110327,1,"Alex Linemburg",2001,"Madeira","Clube Judo Brava",1,1,null,1]
["Masculino","-81",26,124043,1,"Tomás Rodrigues",2001,"Lisboa","Clube de Judo Hajime",1,1,null,null,null,null,null,null,null,null,null,null,null,null,null,null,null,null,null,1]
["Masculino","-81",27,114819,1,"Rodrigo Saraiva",2001,"Açores","Judo Clube Ponta Delgada",1,1,null,null,null,null,null,null,null,null,null,null,null,null,null,null,null,null,null,null,null,1]
["Masculino","-81",28,111959,1,"Ricardo Lopes",2002,"V.Castelo","Judo Clube de Caminha \"Jucaminha\"",1,1,null,null,null,null,null,null,null,null,null,null,null,null,null,null,null,null,null,null,null,null,null,1]
["Masculino","-81",29,133279,1,"Diogo Alves",2001,"Leiria","Judo Clube Marinha Grande",1,1,null,null,null,null,null,null,null,null,null,null,null,null,null,null,null,null,null,null,null,null,null,1]
["Masculino","-81",30,142236,1,"Pedro Gaspar",2002,"Aveiro","Associação 4Judo Project",1,1,null,null,null,null,null,null,null,null,null,null,null,null,null,null,null,null,null,null,null,null,null,1]
["Masculino","-81",31,null,0,null,null,null,null,0,0]
["Masculino","-81",32,null,0,null,null,null,null,0,0]
["Masculino","-81",33,null,0,null,null,null,null,0,0]
["Masculino","-81",34,null,0,null,null,null,null,0,0]
["Masculino","-81",35,null,0,null,null,null,null,0,0]
["Masculino","-81",36,null,0,null,null,null,null,0,0]
["Masculino","-81",37,null,0,null,null,null,null,0,0]
["Masculino","-81",38,null,0,null,null,null,null,0,0]
["Masculino","-81",39,null,0,null,null,null,null,0,0]
["Masculino","-81",40,null,0,null,null,null,null,0,0]
["Masculino","-81",41,null,0,null,null,null,null,0,0]
["Masculino","-81",42,null,0,null,null,null,null,0,0]
["Masculino","-81",43,null,0,null,null,null,null,0,0]
["Masculino","-81",44,null,0,null,null,null,null,0,0]

{"sheet":"+81","index":9,"n_rows":35,"n_cols":33,"rows_kept":35,"cut":false,"hidden":false,"merged":[]}
[null,null,null,null,null,null,null,null,"CADETES"]
[null,null,null,null,null,null,null,null,"+81KG ",null,null,"LISBOA","MADEIRA","AÇORES","NORTE","CENTRO-SUL","SUL","CENTRO","FPJ","PORTO","LISBOA","CASTELO BRANCO","COIMBRA","SETÚBAL","VIANA CASTELO","I.TERCEIRA","COIMBRA","SANTARÉM","LISBOA","MADEIRA","AÇORES","SETÚBAL","COIMBRA"]
[null,null,null,null,null,null,null,null,null,null,null,"2016-01-09","2016-01-16","2016-01-16","2016-01-16","2016-01-16","2016-01-16","2016-01-17","2016-01-31","2016-04-02","2016-04-09","2016-04-17","2016-04-30","2016-04-30","2016-06-18","2016-06-25","2016-06-26","2016-07-03","2016-10-22","2016-11-12","2016-11-19","2016-11-19","2016-12-17"]
["Género","Categoria",null,"LF",null,"NOME","Ano de Nascimento","Associação","CLUBE","Somatório de pontos","Número de provas","Camp. Zonal CADETES","Camp. Zonal CADETES","Camp. Zonal CADETES","Camp. Zonal CADETES","Camp. Zonal CADETES","Camp. Zonal CADETES","Camp. Zonal CADETES","Camp.Nac. Cadetes","OPEN CADETES","OPEN CADETES","OPEN MESTRE ANTONIO MORAIS","OPEN INT. CIDADE BARCELOS","OPEN MONTIJO CADETES","OPEN INT. CIDADE DE VALENÇA","TORNEIO DE SÃO JOÃO","TAÇA ANTONIO ALEIXO","OPEN INT. ADJ SANTARÉM","OPEN CADETES","OPEN CADETES","OPEN PONTA DELGADA","OPEN PRAGAL","OPEN CADETES"]
[]
["Masculino","+81",1,121008,{"$f":"COUNTIF(D:D,D6)","v":1},"Artur Matias",2001,"Lisboa","Clube Atlético da Alta de Lisboa",{"$f":"SUM(L6:AP6)","v":28},{"$f":"COUNT(L6:AQ6)","v":7},null,null,null,null,null,null,null,null,1,1,6,null,null,null,null,2,null,6,null,null,6,6]
["Masculino","+81",2,129640,1,"Gustavo Monteiro",2000,"Porto","Boavista Futebol Clube",12,2,null,null,null,null,null,null,null,null,null,null,null,6,null,6]
["Masculino","+81",3,124904,1,"Rafael Barreira",2000,"Lisboa","ISJudo Associação",7,3,null,null,null,null,null,null,null,null,4,null,null,null,null,null,null,null,null,1,null,null,2]
["Masculino","+81",4,109038,1,"Miguel Pacheco",2000,"Açores","Clube Escolar Desp. Escola Basica de Arrifes",6,1,null,null,6]
["Masculino","+81",5,129485,1,"Usama Sharhorze",2000,"I.Terceira","Judo Clube Praia da Vitória",4,1,null,null,4]
["Masculino","+81",6,129468,1,"Diogo Santos",2001,"Braga","Associação Desportiva e Cultural Manhente",4,3,null,null,null,1,null,null,null,null,null,null,null,1,null,2]
["Masculino","+81",7,114819,1,"Rodrigo Saraiva",2001,"Açores","Judo Clube Ponta Delgada",1,1,null,null,1]
["Masculino","+81",8,142278,1,"Diogo Fernandes",2001,"Braga","Casa do Povo de Ronfe",1,1,null,null,null,null,null,null,null,null,null,null,null,null,null,null,null,null,null,null,null,null,null,1]
["Masculino","+81",9,null,0,null,null,null,null,0,0]
["Masculino","+81",10,null,0,null,null,null,null,{"$f":"SUM(L15:AP15)","v":0},{"$f":"COUNT(L15:AQ15)","v":0}]
["Masculino","+81",11,null,0,null,null,null,null,0,0]
["Masculino","+81",12,null,0,null,null,null,null,0,0]
["Masculino","+81",13,null,0,null,null,null,null,0,0]
["Masculino","+81",14,null,0,null,null,null,null,0,0]
["Masculino","+81",15,null,0,null,null,null,null,0,0]
["Masculino","+81",16,null,0,null,null,null,null,0,0]
["Masculino","+81",17,null,0,null,null,null,null,0,0]
["Masculino","+81",18,null,0,null,null,null,null,0,0]
["Masculino","+81",19,null,0,null,null,null,null,0,0]
["Masculino","+81",20,null,0,null,null,null,null,0,0]
["Masculino","+81",21,null,0,null,null,null,null,0,0]
["Masculino","+81",22,null,0,null,null,null,null,0,0]
["Masculino","+81",23,null,0,null,null,null,null,0,0]
["Masculino","+81",24,null,0,null,null,null,null,0,0]
["Masculino","+81",25,null,0,null,null,null,null,0,0]
["Masculino","+81",26,null,0,null,null,null,null,0,0]
["Masculino","+81",27,null,0,null,null,null,null,0,0]
["Masculino","+81",28,null,0,null,null,null,null,0,0]
["Masculino","+81",29,null,0,null,null,null,null,0,0]
["Masculino","+81",30,null,0,null,null,null,null,0,0]

{"sheet":"-90","index":10,"n_rows":59,"n_cols":33,"rows_kept":59,"cut":false,"hidden":false,"merged":[]}
[null,null,null,null,null,null,null,null,"CADETES"]
[null,null,null,null,null,null,null,null,"-90KG ",null,null,"LISBOA","MADEIRA","AÇORES","NORTE","CENTRO-SUL","SUL","CENTRO","FPJ","PORTO","LISBOA","CASTELO BRANCO","COIMBRA","SETÚBAL","VIANA CASTELO","I.TERCEIRA","COIMBRA","SANTARÉM","LISBOA","MADEIRA","AÇORES","SETÚBAL","COIMBRA"]
[null,null,null,null,null,null,null,null,null,null,null,"2016-01-09","2016-01-16","2016-01-16","2016-01-16","2016-01-16","2016-01-16","2016-01-17","2016-01-31","2016-04-02","2016-04-09","2016-04-17","2016-04-30","2016-04-30","2016-06-18","2016-06-25","2016-06-26","2016-07-03","2016-10-22","2016-11-12","2016-11-19","2016-11-19","2016-12-17"]
["Género","Categoria",null,"LF",null,"NOME","Ano de Nascimento","Associação","CLUBE","Somatório de pontos","Número de provas","Camp. Zonal CADETES","Camp. Zonal CADETES","Camp. Zonal CADETES","Camp. Zonal CADETES","Camp. Zonal CADETES","Camp. Zonal CADETES","Camp. Zonal CADETES","Camp.Nac. Cadetes","OPEN CADETES","OPEN CADETES","OPEN MESTRE ANTONIO MORAIS","OPEN INT. CIDADE BARCELOS","OPEN MONTIJO CADETES","OPEN INT. CIDADE DE VALENÇA","TORNEIO DE SÃO JOÃO","TAÇA ANTONIO ALEIXO","OPEN INT. ADJ SANTARÉM","OPEN CADETES","OPEN CADETES","OPEN PONTA DELGADA","OPEN PRAGAL","OPEN CADETES"]
[]
["Masculino","-90",1,110376,{"$f":"COUNTIF(D:D,D6)","v":1},"Miguel Catita",2000,"Lisboa","Sport Algés e Dafundo",{"$f":"SUM(L6:AP6)","v":10},{"$f":"COUNT(L6:AQ6)","v":2},4,null,null,null,null,null,null,6]
["Masculino","-90",2,129485,1,"Usama Sharhorze",2000,"I.Terceira","Judo Clube Praia da Vitória",{"$f":"SUM(L7:AO7)","v":1},{"$f":"COUNT(L7:AP7)","v":1},null,null,null,null,null,null,null,1]
["Masculino","-90",3,null,0,null,null,null,null,{"$f":"SUM(L8:AO8)","v":0},{"$f":"COUNT(L8:AP8)","v":0}]
["Masculino","-90",4,null,0,null,null,null,null,0,0]
["Masculino","-90",5,null,0,null,null,null,null,0,0]
["Masculino","-90",6,null,0,null,null,null,null,0,0]
["Masculino","-90",7,null,0,null,null,null,null,0,0]
["Masculino","-90",8,null,0,null,null,null,null,0,0]
["Masculino","-90",9,null,0,null,null,null,null,0,0]
["Masculino","-90",10,null,0,null,null,null,null,0,0]
["Masculino","-90",11,null,0,null,null,null,null,0,0]
["Masculino","-90",12,null,0,null,null,null,null,0,0]
["Masculino","-90",13,null,0,null,null,null,null,0,0]
["Masculino","-90",14,null,0,null,null,null,null,0,0]
["Masculino","-90",15,null,0,null,null,null,null,0,0]
["Masculino","-90",16,null,0,null,null,null,null,0,0]
["Masculino","-90",17,null,0,null,null,null,null,0,0]
["Masculino","-90",18,null,0,null,null,null,null,0,0]
["Masculino","-90",19,null,0,null,null,null,null,0,0]
["Masculino","-90",20,null,0,null,null,null,null,0,0]
["Masculino","-90",21,null,0,null,null,null,null,0,0]
["Masculino","-90",22,null,0,null,null,null,null,0,0]
["Masculino","-90",23,null,0,null,null,null,null,0,0]
["Masculino","-90",24,null,0,null,null,null,null,0,0]
["Masculino","-90",25,null,0,null,null,null,null,0,0]
["Masculino","-90",26,null,0,null,null,null,null,0,0]
["Masculino","-90",27,null,0,null,null,null,null,0,0]
["Masculino","-90",28,null,0,null,null,null,null,0,0]
["Masculino","-90",29,null,0,null,null,null,null,0,0]
["Masculino","-90",30,null,0,null,null,null,null,0,0]
["Masculino","-90",31,null,0,null,null,null,null,{"$f":"SUM(L36:AO36)","v":0},{"$f":"COUNT(L36:AP36)","v":0}]
["Masculino","-90",32,null,0,null,null,null,null,0,0]
["Masculino","-90",33,null,{"$f":"COUNTIF(D:D,D38)","v":0},null,null,null,null,0,0]
["Masculino","-90",34,null,0,null,null,null,null,0,0]
["Masculino","-90",35,null,0,null,null,null,null,0,0]
["Masculino","-90",36,null,0,null,null,null,null,0,0]
["Masculino","-90",37,null,0,null,null,null,null,0,0]
["Masculino","-90",38,null,0,null,null,null,null,0,0]
["Masculino","-90",39,null,0,null,null,null,null,0,0]
["Masculino","-90",40,null,0,null,null,null,null,0,0]
["Masculino","-90",41,null,0,null,null,null,null,0,0]
["Masculino","-90",42,null,0,null,null,null,null,0,0]
["Masculino","-90",43,null,0,null,null,null,null,0,0]
["Masculino","-90",44,null,0,null,null,null,null,0,0]
["Masculino","-90",45,null,0,null,null,null,null,0,0]
["Masculino","-90",46,null,0,null,null,null,null,0,0]
["Masculino","-90",47,null,0,null,null,null,null,0,0]
["Masculino","-90",48,null,0,null,null,null,null,0,0]
["Masculino","-90",49,null,0,null,null,null,null,0,0]
["Masculino","-90",50,null,0,null,null,null,null,0,0]
["Masculino","-90",51,null,0,null,null,null,null,0,0]
["Masculino","-90",52,null,0,null,null,null,null,0,0]
["Masculino","-90",53,null,0,null,null,null,null,0,0]
["Masculino","-90",54,null,0,null,null,null,null,0,0]

{"sheet":"+90","index":11,"n_rows":37,"n_cols":33,"rows_kept":37,"cut":false,"hidden":false,"merged":[]}
[null,null,null,null,null,null,null,null,"CADETES"]
[null,null,null,null,null,null,null,null,"+90KG ",null,null,"LISBOA","MADEIRA","AÇORES","NORTE","CENTRO-SUL","SUL","CENTRO","FPJ","PORTO","LISBOA","CASTELO BRANCO","COIMBRA","SETÚBAL","VIANA CASTELO","I.TERCEIRA","COIMBRA","SANTARÉM","LISBOA","MADEIRA","AÇORES","SETÚBAL","COIMBRA"]
[null,null,null,null,null,null,null,null,null,null,null,"2016-01-09","2016-01-16","2016-01-16","2016-01-16","2016-01-16","2016-01-16","2016-01-17","2016-01-31","2016-04-02","2016-04-09","2016-04-17","2016-04-30","2016-04-30","2016-06-18","2016-06-25","2016-06-26","2016-07-03","2016-10-22","2016-11-12","2016-11-19","2016-11-19","2016-12-17"]
["Género","Categoria",null,"LF",null,"NOME","Ano de Nascimento","Associação","CLUBE","Somatório de pontos","Número de provas","Camp. Zonal CADETES","Camp. Zonal CADETES","Camp. Zonal CADETES","Camp. Zonal CADETES","Camp. Zonal CADETES","Camp. Zonal CADETES","Camp. Zonal CADETES","Camp.Nac. Cadetes","OPEN CADETES","OPEN CADETES","OPEN MESTRE ANTONIO MORAIS","OPEN INT. CIDADE BARCELOS","OPEN MONTIJO CADETES","OPEN INT. CIDADE DE VALENÇA","TORNEIO DE SÃO JOÃO","TAÇA ANTONIO ALEIXO","OPEN INT. ADJ SANTARÉM","OPEN CADETES","OPEN CADETES","OPEN PONTA DELGADA","OPEN PRAGAL","OPEN CADETES"]
[]
["Masculino","+90",1,121008,{"$f":"COUNTIF(D:D,D6)","v":1},"Artur Matias",2001,"Lisboa","Clube Atlético da Alta de Lisboa",{"$f":"SUM(L6:AP6)","v":13},{"$f":"COUNT(L6:AQ6)","v":3},1,null,null,null,null,null,null,6,null,null,null,null,6]
["Masculino","+90",2,124904,1,"Rafael Barreia",2000,"Lisboa","ISJudo Associação",{"$f":"SUM(L7:AP7)","v":11},{"$f":"COUNT(L7:AQ7)","v":2},6,null,null,null,null,null,null,5]
["Masculino","+90",3,109038,1,"Miguel Pacheco",2000,"Açores","Clube Escolar Desp. Escola Basica de Arrifes",{"$f":"SUM(L8:AP8)","v":5},{"$f":"COUNT(L8:AQ8)","v":2},null,null,null,null,null,null,null,4,null,null,null,null,null,null,1]
["Masculino","+90",4,112916,1,"Gonçalo Antunes",2001,"Algarve","Clube Recreativo Alturense",{"$f":"SUM(L9:AP9)","v":2},{"$f":"COUNT(L9:AQ9)","v":2},null,null,null,null,null,1,null,1]
["Masculino","+90",5,129468,1,"Diogo Santos",2001,"Braga","Associação Desportiva e Cultural Manhente",{"$f":"SUM(L10:AP10)","v":2},{"$f":"COUNT(L10:AQ10)","v":1},null,null,null,null,null,null,null,2]
["Masculino","+90",6,null,0,null,null,null,null,{"$f":"SUM(L11:AP11)","v":0},{"$f":"COUNT(L11:AQ11)","v":0}]
["Masculino","+90",7,null,0,null,null,null,null,0,0]
["Masculino","+90",8,null,0,null,null,null,null,0,0]
["Masculino","+90",9,null,0,null,null,null,null,0,0]
["Masculino","+90",10,null,0,null,null,null,null,0,0]
["Masculino","+90",11,null,0,null,null,null,null,0,0]
["Masculino","+90",12,null,0,null,null,null,null,0,0]
["Masculino","+90",13,null,0,null,null,null,null,0,0]
["Masculino","+90",14,null,0,null,null,null,null,0,0]
["Masculino","+90",15,null,0,null,null,null,null,0,0]
["Masculino","+90",16,null,0,null,null,null,null,0,0]
["Masculino","+90",17,null,0,null,null,null,null,0,0]
["Masculino","+90",18,null,0,null,null,null,null,0,0]
["Masculino","+90",19,null,0,null,null,null,null,0,0]
["Masculino","+90",20,null,0,null,null,null,null,0,0]
["Masculino","+90",21,null,0,null,null,null,null,0,0]
["Masculino","+90",22,null,0,null,null,null,null,0,0]
["Masculino","+90",23,null,0,null,null,null,null,0,0]
["Masculino","+90",24,null,0,null,null,null,null,0,0]
["Masculino","+90",25,null,0,null,null,null,null,0,0]
["Masculino","+90",26,null,0,null,null,null,null,0,0]
["Masculino","+90",27,null,0,null,null,null,null,0,0]
["Masculino","+90",28,null,0,null,null,null,null,0,0]
["Masculino","+90",29,null,0,null,null,null,null,0,0]
["Masculino","+90",30,null,0,null,null,null,null,0,0]
["Masculino","+90",31,null,0,null,null,null,null,0,0]
["Masculino","+90",32,null,0,null,null,null,null,0,0]

{"sheet":"-44","index":12,"n_rows":36,"n_cols":33,"rows_kept":36,"cut":false,"hidden":false,"merged":[]}
[null,null,null,null,null,null,null,null,"CADETES"]
[null,null,null,null,null,null,null,null,"-44KG ",null,null,"LISBOA","MADEIRA","AÇORES","NORTE","CENTRO-SUL","SUL","CENTRO","FPJ","PORTO","LISBOA","CASTELO BRANCO","COIMBRA","SETÚBAL","VIANA CASTELO","I.TERCEIRA","COIMBRA","SANTARÉM","LISBOA","MADEIRA","AÇORES","SETÚBAL","COIMBRA"]
[null,null,null,null,null,null,null,null,null,null,null,"2016-01-09","2016-01-16","2016-01-16","2016-01-16","2016-01-16","2016-01-16","2016-01-17","2016-01-31","2016-04-02","2016-04-09","2016-04-17","2016-04-30","2016-04-30","2016-06-18","2016-06-25","2016-06-26","2016-07-03","2016-10-22","2016-11-12","2016-11-19","2016-11-19","2016-12-17"]
["Género","Categoria",null,"LF",null,"NOME","Ano de Nascimento","Associação","CLUBE","Somatório de pontos","Número de provas","Camp. Zonal CADETES","Camp. Zonal CADETES","Camp. Zonal CADETES","Camp. Zonal CADETES","Camp. Zonal CADETES","Camp. Zonal CADETES","Camp. Zonal CADETES","Camp.Nac. Cadetes","OPEN CADETES","OPEN CADETES","OPEN MESTRE ANTONIO MORAIS","OPEN INT. CIDADE BARCELOS","OPEN MONTIJO CADETES","OPEN INT. CIDADE DE VALENÇA","TORNEIO DE SÃO JOÃO","TAÇA ANTONIO ALEIXO","OPEN INT. ADJ SANTARÉM","OPEN CADETES","OPEN CADETES","OPEN PONTA DELGADA","OPEN PRAGAL","OPEN CADETES"]
[]
["Feminino","-44",1,121384,{"$f":"COUNTIF(D:D,D6)","v":1},"Vanessa Barbosa",2000,"Braga","Associação Desportiva e Cultural Manhente",{"$f":"SUM(L6:AP6)","v":38},{"$f":"COUNT(L6:AQ6)","v":7},null,null,null,6,null,null,null,4,6,null,null,6,null,6,null,null,4,null,null,null,null,6]
["Feminino","-44",2,132822,1,"Raquel Calado",2001,"Santarém","Grupo Recreativo 1º de Outubro",13,6,null,null,null,null,null,null,3,2,null,null,1,1,null,null,null,4,2]
["Feminino","-44",3,130819,1,"Helena Castro",2001,"Braga","ARCAP - Academia Recreativa e Cultural \"Amigos de Ponte\"",9,4,null,null,null,1,null,null,null,3,1,null,null,4]
["Feminino","-44",4,122906,1,"Carolina Rodrigues",2001,"Coimbra","Centro Norton de Matos",5,1,null,null,null,null,null,null,5]
["Feminino","-44",5,126878,1,"Joana Coutinho",2001,"Algarve","BEJUDO - Clube",2,2,null,null,null,null,null,1,null,1]
["Feminino","-44",6,108774,1,"Mariana Piedade",2000,"Santarém","Casa do Povo de Rio Maior",2,2,null,null,null,null,null,null,1,1]
["Feminino","-44",7,140025,1,"Margarida Cabral",2001,"Lisboa","Judo Clube Lisboa",2,2,null,null,null,null,null,null,null,null,null,null,null,null,null,null,null,1,1]
["Feminino","-44",8,117183,1,"Iara Neves",2002,"Leiria","Judo Clube Marinha Grande",1,1,null,null,null,null,null,null,null,null,null,null,null,null,null,null,null,null,null,null,null,null,null,1]
["Feminino","-44",9,null,0,null,null,null,null,{"$f":"SUM(L14:AP14)","v":0},{"$f":"COUNT(L14:AQ14)","v":0}]
["Feminino","-44",10,null,0,null,null,null,null,0,0]
["Feminino","-44",11,null,0,null,null,null,null,0,0]
["Feminino","-44",12,null,0,null,null,null,null,0,0]
["Feminino","-44",13,null,0,null,null,null,null,0,0]
["Feminino","-44",14,null,0,null,null,null,null,0,0]
["Feminino","-44",15,null,0,null,null,null,null,0,0]
["Feminino","-44",16,null,0,null,null,null,null,0,0]
["Feminino","-44",17,null,0,null,null,null,null,0,0]
["Feminino","-44",18,null,0,null,null,null,null,0,0]
["Feminino","-44",19,null,0,null,null,null,null,0,0]
["Feminino","-44",20,null,0,null,null,null,null,0,0]
["Feminino","-44",21,null,0,null,null,null,null,0,0]
["Feminino","-44",22,null,0,null,null,null,null,0,0]
["Feminino","-44",23,null,0,null,null,null,null,0,0]
["Feminino","-44",24,null,0,null,null,null,null,0,0]
["Feminino","-44",25,null,0,null,null,null,null,0,0]
["Feminino","-44",26,null,0,null,null,null,null,0,0]
["Feminino","-44",27,null,0,null,null,null,null,0,0]
["Feminino","-44",28,null,0,null,null,null,null,0,0]
["Feminino","-44",29,null,0,null,null,null,null,0,0]
["Feminino","-44",30,null,0,null,null,null,null,0,0]
["Feminino","-44",31,null,0,null,null,null,null,0,0]

{"sheet":"-48","index":13,"n_rows":24,"n_cols":33,"rows_kept":24,"cut":false,"hidden":false,"merged":[]}
[null,null,null,null,null,null,null,null,"CADETES"]
[null,null,null,null,null,null,null,null,"-48KG ",null,null,"LISBOA","MADEIRA","AÇORES","NORTE","CENTRO-SUL","SUL","CENTRO","FPJ","PORTO","LISBOA","CASTELO BRANCO","COIMBRA","SETÚBAL","VIANA CASTELO","I.TERCEIRA","COIMBRA","SANTARÉM","LISBOA","MADEIRA","AÇORES","SETÚBAL","COIMBRA"]
[null,null,null,null,null,null,null,null,null,null,null,"2016-01-09","2016-01-16","2016-01-16","2016-01-16","2016-01-16","2016-01-16","2016-01-17","2016-01-31","2016-04-02","2016-04-09","2016-04-17","2016-04-30","2016-04-30","2016-06-18","2016-06-25","2016-06-26","2016-07-03","2016-10-22","2016-11-12","2016-11-19","2016-11-19","2016-12-17"]
["Género","Categoria",null,"LF",null,"NOME","Ano de Nascimento","Associação","CLUBE","Somatório de Pontos","Número de provas","Camp. Zonal CADETES","Camp. Zonal CADETES","Camp. Zonal CADETES","Camp. Zonal CADETES","Camp. Zonal CADETES","Camp. Zonal CADETES","Camp. Zonal CADETES","Camp.Nac. Cadetes","OPEN CADETES","OPEN CADETES","OPEN MESTRE ANTONIO MORAIS","OPEN INT. CIDADE BARCELOS","OPEN MONTIJO CADETES","OPEN INT. CIDADE DE VALENÇA","TORNEIO DE SÃO JOÃO","TAÇA ANTONIO ALEIXO","OPEN INT. ADJ SANTARÉM","OPEN CADETES","OPEN CADETES","OPEN PONTA DELGADA","OPEN PRAGAL","OPEN CADETES"]
[]
["Feminino","-48",1,126888,{"$f":"COUNTIF(D:D,D6)","v":1},"Carolina Estevão",2000,"Setúbal","CCD-Clube Judo Montijo",{"$f":"SUM(L6:AP6)","v":45},{"$f":"COUNT(L6:AQ6)","v":7},null,null,null,null,null,6,null,10,null,2,7,null,7,null,null,null,7,6]
["Feminino","-48",2,110991,1,"Rita Soares",2001,"Lisboa","Escola de Judo Nuno Delgado",13,5,4,null,null,null,null,null,null,2,null,null,3,null,1,null,null,null,3]
["Feminino","-48",3,119334,1,"Ana Fernandes",2001,"Setúbal","Grupo de Amigos da Costa da Caparica",13,6,null,null,null,null,null,3,null,1,null,null,1,null,3,4,null,null,1]
["Feminino","-48",4,115417,1,"Diana Valença",2001,"Coimbra","Associação Cristã da Mocidade de Coimbra",13,4,null,null,null,null,null,null,4,7,null,null,null,null,null,null,null,1,null,null,null,null,null,1]
["Feminino","-48",5,142498,1,"Francisca Jorge",2002,"C.Branco","Escola de Judo Ana Hormigo",10,1,null,null,null,null,null,null,null,null,null,null,null,null,null,null,null,null,null,null,null,null,null,10]
["Feminino","-48",6,110132,1,"Raquel Barbas",2001,"Santarém","Judo Clube Coruche",7,2,null,null,null,null,null,null,6,1]
["Feminino","-48",7,114175,1,"Teresa Santos",2002,"Algarve","Unbreakable Force - Associação Desportiva e Cultural",7,1,null,null,null,null,null,null,null,null,null,null,null,null,null,null,null,null,null,null,null,null,null,7]
["Feminino","-48",8,122906,1,"Carolina Rodrigues",2001,"Coimbra","Centro Norton de Matos",6,1,null,null,null,null,null,null,null,null,null,null,null,null,null,null,null,6]
["Feminino","-48",9,120087,1,"Vânia Baptista",2001,"Lisboa","Clube Atlético da Alta  de Lisboa",5,3,null,null,null,null,null,null,null,3,null,null,null,null,null,null,null,null,1,1]
["Feminino","-48",10,144376,1,"Lenira Martins",2001,"Lisboa","Sport Lisboa e Benfica",5,2,1,null,null,null,null,null,null,null,null,null,null,null,null,null,null,null,null,null,null,null,null,4]
["Feminino","-48",11,108553,1,"Ana Nunes",2001,"Madeira","Grupo Desportivo APEL",4,1,null,null,null,null,null,null,null,4]
["Feminino","-48",12,131277,1,"Filipa Barata",2002,"Lisboa","Escola de Judo Nuno Delgado",4,1,null,null,null,null,null,null,null,null,null,null,null,null,null,null,null,null,null,4]
["Feminino","-48",13,127860,1,"Ana Agulhas",2001,"Lisboa","Oficinas de São José",3,1,null,null,null,null,null,null,null,null,null,null,null,null,null,null,null,null,3]
["Feminino","-48",14,127177,1,"Juliana Lopes",2002,"Coimbra","Associação Academica de Coimbra",3,1,null,null,null,null,null,null,null,null,null,null,null,null,null,null,null,null,null,null,null,null,null,3]
["Feminino","-48",15,138902,1,"Bárbara Almeida",2001,"Açores","Judo Clube S. Jorge",2,2,null,null,1,null,null,null,null,1]
["Feminino","-48",16,137835,1,"Helena Hingá",2000,"Leiria","Judo Clube \"O Dragão\"",2,2,null,null,null,null,null,null,1,1]
["Feminino","-48",17,140025,1,"Margarida Cabral",2001,"Lisboa","Judo Clube Lisboa",2,2,null,null,null,null,null,null,null,null,null,1,null,null,1]
["Feminino","-48",18,null,0,null,null,null,null,0,0]
["Feminino","-48",19,null,0,null,null,null,null,0,0]

{"sheet":"-52","index":14,"n_rows":41,"n_cols":33,"rows_kept":41,"cut":false,"hidden":false,"merged":[]}
[null,null,null,null,null,null,null,null,"CADETES"]
[null,null,null,null,null,null,null,null,"-52KG ",null,null,"LISBOA","MADEIRA","AÇORES","NORTE","CENTRO-SUL","SUL","CENTRO","FPJ","PORTO","LISBOA","CASTELO BRANCO","COIMBRA","SETÚBAL","VIANA CASTELO","I.TERCEIRA","COIMBRA","SANTARÉM","LISBOA","MADEIRA","AÇORES","SETÚBAL","COIMBRA"]
[null,null,null,null,null,null,null,null,null,null,null,"2016-01-09","2016-01-16","2016-01-16","2016-01-16","2016-01-16","2016-01-16","2016-01-17","2016-01-31","2016-04-02","2016-04-09","2016-04-17","2016-04-30","2016-04-30","2016-06-18","2016-06-25","2016-06-26","2016-07-03","2016-10-22","2016-11-12","2016-11-19","2016-11-19","2016-12-17"]
["Género","Categoria",null,"LF",null,"NOME","Ano de Nascimento","Associação","CLUBE","Somatório de Pontos","Número de provas","Camp. Zonal CADETES","Camp. Zonal CADETES","Camp. Zonal CADETES","Camp. Zonal CADETES","Camp. Zonal CADETES","Camp. Zonal CADETES","Camp. Zonal CADETES","Camp.Nac. Cadetes","OPEN CADETES","OPEN CADETES","OPEN MESTRE ANTONIO MORAIS","OPEN INT. CIDADE BARCELOS","OPEN MONTIJO CADETES","OPEN INT. CIDADE DE VALENÇA","TORNEIO DE SÃO JOÃO","TAÇA ANTONIO ALEIXO","OPEN INT. ADJ SANTARÉM","OPEN CADETES","OPEN CADETES","OPEN PONTA DELGADA","OPEN PRAGAL","OPEN CADETES"]
[]
["Feminino","-52",1,122699,{"$f":"COUNTIF(D:D,D6)","v":1},"Mafalda Ezequiel",2000,"Lisboa","Judo Clube Lisboa",{"$f":"SUM(L6:AP6)","v":59},{"$f":"COUNT(L6:AQ6)","v":6},8,null,null,null,null,null,null,17,8,7,11,null,null,null,null,null,8]
["Feminino","-52",2,127860,1,"Ana Agulhas",2001,"Lisboa","Oficinas de São José",52,8,4,null,null,null,null,null,null,7,6,1,7,null,null,null,null,null,null,10,null,null,7,10]
["Feminino","-52",3,112270,1,"Maria Sereno",2000,"Lisboa","Escola de Judo Nuno Delgado",43,8,5,null,null,null,null,null,null,2,null,10,2,null,4,null,null,null,6,8,null,null,6]
["Feminino","-52",4,113499,1,"Ana Campos",2000,"Lisboa","Universidade Lusofona de Humanidades de Tecnologias",33,9,3,null,null,null,null,null,null,11,null,1,1,null,5,null,null,null,3,3,null,null,2,4]
["Feminino","-52",5,123016,1,"Inês Penetra",2001,"Braga","Associação Desportiva e Cultural Manhente",22,6,null,null,null,1,null,null,null,4,2,null,null,6,null,2,null,null,null,null,null,null,null,7]
["Feminino","-52",6,137421,1,"Maria Lopes",2001,"Santarém","Casa do Benfica de Santarém",19,5,null,null,null,null,null,null,6,1,null,null,4,null,null,null,null,6,2]
["Feminino","-52",7,134318,1,"Mafalda Matos",2000,"Algarve","Judo Clube do Algarve",17,3,null,null,null,null,null,6,null,7,null,null,null,null,null,null,null,null,null,null,null,null,4]
["Feminino","-52",8,138611,1,"Andreia Serrão",2001,"Setúbal","CCD-Clube Judo Montijo",15,2,null,null,null,null,null,4,null,11]
["Feminino","-52",9,140806,1,"Fátima Costa",2002,"Coimbra","Judo Clube de Coimbra",13,1,null,null,null,null,null,null,null,null,null,null,null,null,null,null,null,null,null,null,null,null,null,13]
["Feminino","-52",10,108553,1,"Ana Nunes",2001,"Madeira","Grupo Desportivo APEL",11,5,null,4,null,null,null,null,null,null,null,3,null,null,2,null,null,null,null,1,1]
["Feminino","-52",11,105039,1,"Teresa Trindade",2001,"Setúbal","Judo Clube Pragal",11,2,null,null,null,null,null,8,null,3]
["Feminino","-52",12,138033,1,"Bianca Fontes",2001,"Coimbra","Casa do Povo de Miranda do Corvo",10,4,null,null,null,null,null,null,4,1,null,null,null,null,null,null,null,4,null,null,null,null,null,1]
["Feminino","-52",13,115142,1,"Beatriz Caires",2001,"Madeira","Judo Clube Madeira",8,2,null,6,null,null,null,null,null,2]
["Feminino","-52",14,112998,1,"Joana Rocha",2002,"Leiria","Judo Clube Marinha Grande",8,1,null,null,null,null,null,null,null,null,null,null,null,null,null,null,null,null,null,null,null,null,null,8]
["Feminino","-52",15,133756,{"$f":"COUNTIF(D:D,D20)","v":1},"Mónica Maia",2001,"I.Terceira","Clube de Judo Praia da Vitória",{"$f":"SUM(L20:AP20)","v":6},{"$f":"COUNT(L20:AQ20)","v":2},null,null,4,null,null,null,null,2]
["Feminino","-52",16,140103,1,"Mariana Domingues",2001,"C.Branco","Academia de Judo Castelo Branco",5,3,null,null,null,null,1,null,null,1,null,null,3]
["Feminino","-52",17,148565,1,"Sofia Silva",2000,"Lisboa","Colégio Integrado Monte Maior",5,2,null,null,null,null,null,null,null,null,null,null,null,null,null,null,null,null,null,1,null,null,null,4]
["Feminino","-52",18,123357,1,"Maria Gorjão",2001,"Santarém","Clube de Judo de Riachos",4,2,null,null,null,null,null,null,null,null,null,null,null,null,null,null,null,1,null,null,null,null,null,3]
["Feminino","-52",19,110991,1,"Rita Soares",2001,"Lisboa","Escola de Judo Nuno Delgado",4,1,null,null,null,null,null,null,null,null,null,null,null,null,null,null,null,null,null,4]
["Feminino","-52",20,144381,1,"Ana Morgado",2001,"Lisboa","Judo Clube Sintra",3,3,1,null,null,null,null,null,null,1,null,1]
["Feminino","-52",21,145392,1,"Mónica Amaral",2000,"I.Terceira","Clube de Judo Praia da Vitória",2,2,null,null,1,null,null,null,null,1]
["Feminino","-52",22,144043,1,"Beatriz Nobre",2001,"Algarve","Associação Cultural e Desportiva de Ferragudo",2,2,null,null,null,null,null,1,null,1]
["Feminino","-52",23,117137,1,"Alexandra Moreira",2000,"Açores","Judo Clube Ponta Delgada",2,1,null,null,null,null,null,null,null,2]
["Feminino","-52",24,145797,1,"Sara Lopes",2000,"Braga","ARCAP - Academia Recreativa e Cultural \"Amigos de Ponte\"",2,2,null,null,null,null,null,null,null,null,1,null,null,1]
["Feminino","-52",25,111165,1,"Bruna Rodrigues",2000,"Santarém","Sociedade Filarmónica Gualdim Pais",2,1,null,null,null,null,null,null,null,null,null,null,null,null,null,null,null,null,null,2]
["Feminino","-52",26,131277,1,"Filipa Barata",2002,"Lisboa","Escola de Judo Nuno Delgado",2,1,null,null,null,null,null,null,null,null,null,null,null,null,null,null,null,null,null,null,null,null,2]
["Feminino","-52",27,148964,1,"Catarina Alcarrão",2001,"Aveiro","Associação 4Judo Project",2,1,null,null,null,null,null,null,null,null,null,null,null,null,null,null,null,null,null,null,null,null,null,2]
["Feminino","-52",28,129169,{"$f":"COUNTIF(D:D,D33)","v":1},"Ana Cruz",2000,"Madeira","Clube Naval do Funchal",{"$f":"SUM(L33:AP33)","v":1},{"$f":"COUNT(L33:AQ33)","v":1},null,1]
["Feminino","-52",29,146273,1,"Julia Almeida",2001,"Setúbal","Grupo de Amigos da Costa da Caparica",1,1,null,null,null,null,null,null,null,null,null,null,1]
["Feminino","-52",30,125537,1,"Katerzyna Dudko",2000,"Braga","Vitória Sport Clube",1,1,null,null,null,null,null,null,null,null,null,null,null,null,null,1]
["Feminino","-52",31,137835,1,"Helena Hingá",2000,"Leiria","Judo Clube \"O Dragão\"",1,1,null,null,null,null,null,null,null,null,null,null,null,null,null,null,null,null,null,null,null,null,null,1]
["Feminino","-52",32,119687,1,"Matilde Silva",2002,"Coimbra","Escola de Judo de Coimbra",1,1,null,null,null,null,null,null,null,null,null,null,null,null,null,null,null,null,null,null,null,null,null,1]
["Feminino","-52",33,149112,1,"Mariana Silva",2001,"Santarém","Clube de Judo de Riachos",1,1,null,null,null,null,null,null,null,null,null,null,null,null,null,null,null,null,null,null,null,null,null,1]
["Feminino","-52",34,148745,1,"Mara Baptista",2000,"Coimbra","Judo Clube de Coimbra",1,1,null,null,null,null,null,null,null,null,null,null,null,null,null,null,null,null,null,null,null,null,null,1]
["Feminino","-52",35,null,0,null,null,null,null,0,0]
["Feminino","-52",36,null,0,null,null,null,null,0,0]

{"sheet":"-57","index":15,"n_rows":58,"n_cols":33,"rows_kept":58,"cut":false,"hidden":false,"merged":[]}
[null,null,null,null,null,null,null,null,"CADETES"]
[null,null,null,null,null,null,null,null,"-57KG ",null,null,"LISBOA","MADEIRA","AÇORES","NORTE","CENTRO-SUL","SUL","CENTRO","FPJ","PORTO","LISBOA","CASTELO BRANCO","COIMBRA","SETÚBAL","VIANA CASTELO","I.TERCEIRA","COIMBRA","SANTARÉM","LISBOA","MADEIRA","AÇORES","SETÚBAL","COIMBRA"]
[null,null,null,null,null,null,null,null,null,null,null,"2016-01-09","2016-01-16","2016-01-16","2016-01-16","2016-01-16","2016-01-16","2016-01-17","2016-01-31","2016-04-02","2016-04-09","2016-04-17","2016-04-30","2016-04-30","2016-06-18","2016-06-25","2016-06-26","2016-07-03","2016-10-22","2016-11-12","2016-11-19","2016-11-19","2016-12-17"]
["Género","Categoria",null,"LF",null,"NOME","Ano de Nascimento","Associação","CLUBE","Somatório de pontos","Número de provas","Camp. Zonal CADETES","Camp. Zonal CADETES","Camp. Zonal CADETES","Camp. Zonal CADETES","Camp. Zonal CADETES","Camp. Zonal CADETES","Camp. Zonal CADETES","Camp.Nac. Cadetes","OPEN CADETES","OPEN CADETES","OPEN MESTRE ANTONIO MORAIS","OPEN INT. CIDADE BARCELOS","OPEN MONTIJO CADETES","OPEN INT. CIDADE DE VALENÇA","TORNEIO DE SÃO JOÃO","TAÇA ANTONIO ALEIXO","OPEN INT. ADJ SANTARÉM","OPEN CADETES","OPEN CADETES","OPEN PONTA DELGADA","OPEN PRAGAL","OPEN CADETES"]
[]
["Feminino","-57",1,132004,{"$f":"COUNTIF(D:D,D6)","v":1},"Andreia Loureiro",2000,"Lisboa","Escola de Judo Nuno Delgado",{"$f":"SUM(L6:AP6)","v":83},{"$f":"COUNT(L6:AQ6)","v":7},8,null,null,null,null,null,null,14,null,12,null,null,13,null,null,null,13,12,null,null,11]
["Feminino","-57",2,138611,1,"Andreia Serrão",2001,"Setúbal","CCD-Clube Judo Montijo",39,6,null,null,null,null,null,null,null,null,null,4,7,null,7,null,null,null,8,9,null,null,4]
["Feminino","-57",3,142086,1,"Leonor Silva",2000,"Coimbra","Associação Académica de Coimbra",37,6,null,null,null,null,null,null,8,6,null,null,3,6,null,null,null,7,null,null,null,null,null,7]
["Feminino","-57",4,127478,1,"Carolina Francês",2001,"Lisboa","Clube Atlético da Alta de Lisboa",34,7,2,null,null,null,null,null,null,6,4,null,5,null,10,null,null,null,4,3]
["Feminino","-57",5,111165,1,"Bruna Rodrigues",2000,"Santarém","Sociedade Filarmónica Gualdim Pais",25,5,null,null,null,null,null,null,10,2,null,6,null,4,null,null,null,null,3]
["Feminino","-57",6,105039,1,"Teresa Trindade",2001,"Setúbal","Judo Clube Pragal",24,4,null,null,null,null,null,null,null,null,6,null,null,null,4,null,null,null,7,null,null,null,7]
["Feminino","-57",7,112264,1,"Beatriz Barata",2000,"Lisboa","Escola de Judo Nuno Delgado",22,2,6,null,null,null,null,null,null,16]
["Feminino","-57",8,109490,1,"Isis Bernardes",2000,"Setúbal","CCD-Clube Judo Montijo",22,6,null,null,null,null,null,5,null,1,null,7,1,null,6,null,null,null,2]
["Feminino","-57",9,115142,1,"Beatriz Caires",2001,"Madeira","Judo Clube Madeira",16,4,null,null,null,null,null,null,null,null,null,10,null,null,4,null,null,null,null,1,1]
["Feminino","-57",10,132613,1,"Joana Crisóstomo",2001,"Lisboa","Universidade Lusofona de Humanidades de Tecnologias",14,2,4,null,null,null,null,null,null,null,10]
["Feminino","-57",11,112038,1,"Marta Fonseca",2000,"Coimbra","Judo Clube Barcelos - JUBA",13,6,null,null,null,null,null,null,4,1,3,1,null,1,null,3]
["Feminino","-57",12,123094,1,"Elisabete Kolesnikov",2001,"Setúbal","Judo Clube Pragal",12,3,null,null,null,null,null,7,null,3,null,null,null,null,2]
["Feminino","-57",13,117757,1,"Inês Costa",2001,"Lisboa","Universidade Lusofona de Humanidades de Tecnologias",11,3,null,null,null,null,null,null,null,null,null,null,null,null,null,null,null,null,null,3,null,null,3,5]
["Feminino","-57",14,126811,1,"Vanessa Figueiredo",2002,"Coimbra","Judo Clube Coimbra",11,1,null,null,null,null,null,null,null,null,null,null,null,null,null,null,null,null,null,null,null,null,null,11]
["Feminino","-57",15,129891,1,"Beatriz Rocha",2001,"Madeira","Judo Clube Madeira",10,3,null,6,null,null,null,null,null,2,null,null,null,null,2]
["Feminino","-57",16,129230,1,"Sofia Lopes",2001,"Lisboa","Ginásio Clube Português",9,3,null,null,null,null,null,null,null,null,null,3,null,null,1,null,5]
["Feminino","-57",17,111685,1,"Ana Moura",2001,"C.Branco","Escola de Judo Ana Hormigo",8,3,null,null,null,null,6,null,null,1,null,null,null,null,null,null,null,null,null,null,null,null,null,1]
["Feminino","-57",18,122699,1,"Mafalda Ezequiel",2000,"Lisboa","Judo Clube Lisboa",7,1,null,null,null,null,null,null,null,null,null,null,null,null,null,null,null,null,null,7]
["Feminino","-57",19,117137,1,"Alexandra Moreira",2000,"Açores","Judo Clube Ponta Delgada",6,1,null,null,6]
["Feminino","-57",20,120388,1,"Beatriz Lopes",2001,"Braga","Associação Desportiva e Cultural Manhente",6,2,null,null,null,4,null,null,null,2]
["Feminino","-57",21,127943,1,"Leonor Costa",2001,"Lisboa","Clube Atlético da Alta de Lisboa",6,2,null,null,null,null,null,null,null,null,null,null,null,null,null,null,null,5,null,1]
["Feminino","-57",22,136589,1,"Maria Rodrigues",2002,"Setúbal","Vitória Futebol Clube",6,1,null,null,null,null,null,null,null,null,null,null,null,null,null,null,null,null,null,6]
["Feminino","-57",23,113393,1,"Catarina Cardoso",2000,"Açores","Clube de Judo Angra do Heroismo",5,2,null,null,4,null,null,null,null,1]
["Feminino","-57",24,125537,1,"Katerzyna Dudko",2000,"Braga","Vitória Sport Clube",5,2,null,null,null,2,null,null,null,null,null,null,null,3]
["Feminino","-57",25,112518,1,"Marta Simões",2000,"Coimbra","Escola de Judo de Coimbra",5,2,null,null,null,null,null,null,4,1]
["Feminino","-57",26,144855,1,"Ana Ribeiro",2000,"Aveiro","Associação 4Judo Project",4,2,null,null,null,null,null,null,null,null,null,null,null,null,null,null,null,3,null,null,null,null,null,1]
["Feminino","-57",27,146273,1,"Julia Almeida",2001,"Setúbal","Grupo de Amigos da Costa da Caparica",4,3,null,null,null,null,null,null,null,null,null,null,null,null,null,1,null,null,2,null,null,null,1]
["Feminino","-57",28,136670,1,"Carolina Gonçalves",2002,"Lisboa","Sporting Clube de Portugal",4,2,null,null,null,null,null,null,null,null,null,null,null,null,null,null,null,null,null,null,null,null,2,2]
["Feminino","-57",29,123198,1,"Ana Tavares",2002,"Coimbra","Associação Académica de Coimbra",4,1,null,null,null,null,null,null,null,null,null,null,null,null,null,null,null,null,null,null,null,null,null,4]
["Feminino","-57",30,120969,1,"Maria Queirós",2000,"Coimbra","Associação Educativa e Recreativa de Góis",3,3,null,null,null,null,null,null,1,1,null,null,null,null,null,null,null,1]
["Feminino","-57",31,140103,1,"Mariana Domingues",2001,"C.Branco","Academia de Judo Castelo Branco",3,2,null,null,null,null,null,null,null,null,null,null,null,null,null,null,null,null,1,null,null,null,null,2]
["Feminino","-57",32,145392,1,"Mónica Amaral",2000,"I.Terceira","Clube de Judo Praia da Vitória",3,1,null,null,null,null,null,null,null,null,null,null,null,null,null,null,3]
["Feminino","-57",33,139768,{"$f":"COUNTIF(D:D,D38)","v":1},"Catarina Graça",2001,"Lisboa","Escola de Judo Nuno Delgado",2,2,1,null,null,null,null,null,null,null,null,1]
["Feminino","-57",34,115453,1,"Margarida Freitas",2001,"Madeira","Grupo Desportivo APEL",2,1,null,2]
["Feminino","-57",35,108014,1,"Eduarda Mendes",2001,"Leiria","Clube de Judo \"O Dragão\"",2,1,null,null,null,null,null,null,2]
["Feminino","-57",36,148565,1,"Sofia Silva",2001,"Lisboa","Colégio Integrado Monte Maior",2,2,null,null,null,null,null,null,null,null,null,1,null,null,null,null,null,null,1]
["Feminino","-57",37,130321,1,"Teresa Caldeira",2001,"Portalegre","Centro Popular Trab. Bairro da Boa Fé",1,1,null,null,null,null,1]
["Feminino","-57",38,133326,1,"Carolina Maia",2001,"I.Terceira","Clube de Judo Praia da Vitória",1,1,null,null,1]
["Feminino","-57",39,123357,1,"Maria Gorjão",2001,"Santarém","Clube de Judo de Riachos",1,1,null,null,null,null,null,null,1]
["Feminino","-57",40,106115,1,"Maria Bernardo",2000,"Açores","Judo Clube da Ribeira Grande",1,1,null,null,null,null,null,null,null,1]
["Feminino","-57",41,138033,1,"Bianca Fontes",2001,"Coimbra","Casa do Povo de Miranda do Corvo",1,1,null,null,null,null,null,null,null,null,null,null,null,null,null,null,null,null,1]
["Feminino","-57",42,133756,1,"Mónica Maia",2001,"I.Terceira","Clube de Judo Praia da Vitória",1,1,null,null,null,null,null,null,null,null,null,null,null,null,null,null,1]
["Feminino","-57",43,144381,1,"Ana Morgado",2001,"Lisboa","Judo Clube Sintra",1,1,null,null,null,null,null,null,null,null,null,null,null,null,null,null,null,null,null,1]
["Feminino","-57",44,150266,1,"Sara Queimado",2000,"Setúbal","Centro Cultural e Recreativo do Alto do Moinho",1,1,null,null,null,null,null,null,null,null,null,null,null,null,null,null,null,null,null,null,null,null,1]
["Feminino","-57",45,null,0,null,null,null,null,{"$f":"SUM(L50:AP50)","v":0},{"$f":"COUNT(L50:AQ50)","v":0}]
["Feminino","-57",46,null,0,null,null,null,null,0,0]
["Feminino","-57",47,null,0,null,null,null,null,0,0]
["Feminino","-57",48,null,0,null,null,null,null,0,0]
["Feminino","-57",49,null,0,null,null,null,null,0,0]
["Feminino","-57",50,null,0,null,null,null,null,0,0]
["Feminino","-57",51,null,0,null,null,null,null,0,0]
["Feminino","-57",52,null,0,null,null,null,null,0,0]
["Feminino","-57",53,null,0,null,null,null,null,0,0]

{"sheet":"-63","index":16,"n_rows":39,"n_cols":33,"rows_kept":39,"cut":false,"hidden":false,"merged":[]}
[null,null,null,null,null,null,null,null,"CADETES"]
[null,null,null,null,null,null,null,null,"-63KG ",null,null,"LISBOA","MADEIRA","AÇORES","NORTE","CENTRO-SUL","SUL","CENTRO","FPJ","PORTO","LISBOA","CASTELO BRANCO","COIMBRA","SETÚBAL","VIANA CASTELO","I.TERCEIRA","COIMBRA","SANTARÉM","LISBOA","MADEIRA","AÇORES","SETÚBAL","COIMBRA"]
[null,null,null,null,null,null,null,null,null,null,null,"2016-01-09","2016-01-16","2016-01-16","2016-01-16","2016-01-16","2016-01-16","2016-01-17","2016-01-31","2016-04-02","2016-04-09","2016-04-17","2016-04-30","2016-04-30","2016-06-18","2016-06-25","2016-06-26","2016-07-03","2016-10-22","2016-11-12","2016-11-19","2016-11-19","2016-12-17"]
["Género","Categoria",null,"LF",null,"NOME","Ano de Nascimento","Associação","CLUBE","Somatório de pontos","Número de provas","Camp. Zonal CADETES","Camp. Zonal CADETES","Camp. Zonal CADETES","Camp. Zonal CADETES","Camp. Zonal CADETES","Camp. Zonal CADETES","Camp. Zonal CADETES","Camp.Nac. Cadetes","OPEN CADETES","OPEN CADETES","OPEN MESTRE ANTONIO MORAIS","OPEN INT. CIDADE BARCELOS","OPEN MONTIJO CADETES","OPEN INT. CIDADE DE VALENÇA","TORNEIO DE SÃO JOÃO","TAÇA ANTONIO ALEIXO","OPEN INT. ADJ SANTARÉM","OPEN CADETES","OPEN CADETES","OPEN PONTA DELGADA","OPEN PRAGAL","OPEN CADETES"]
[]
["Feminino","-63",1,132613,{"$f":"COUNTIF(D:D,D6)","v":1},"Joana Crisóstomo",2001,"Lisboa","Universidade Lusofona de Humanidades de Tecnologias",{"$f":"SUM(L6:AP6)","v":64},{"$f":"COUNT(L6:AQ6)","v":7},null,null,null,null,null,null,null,null,null,6,10,null,11,null,null,null,10,10,null,null,11,6]
["Feminino","-63",2,135308,1,"Beatriz Martins",2000,"Setúbal","Vitoria Futebol Clube",46,6,null,null,null,null,null,7,null,11,12,null,null,null,7,null,null,null,7,2]
["Feminino","-63",3,134930,1,"Renata Fernandes",2001,"Aveiro","Sport Clube Beira Mar",38,8,null,null,null,5,null,null,null,6,1,3,4,6,null,10,null,null,3]
["Feminino","-63",4,121382,1,"Beatriz Macedo",2000,"Braga","Associação Desportiva e Cultural Manhente",23,5,null,null,null,7,null,null,null,3,6,null,null,null,null,6,null,null,1]
["Feminino","-63",5,127943,1,"Leonor Costa",2001,"Lisboa","Clube Atlético da Alta de Lisboa",22,6,6,null,null,null,null,null,null,6,3,1,null,null,3,null,null,null,3]
["Feminino","-63",6,113362,1,"Mariana Dias",2001,"Açores","Judo Clube Ramo Grande",20,4,null,null,3,null,null,null,null,14,null,null,null,null,2,null,null,null,null,null,null,null,1]
["Feminino","-63",7,141565,1,"Melissa Colaço",2000,"Setúbal","Judo Clube Pragal",17,6,null,null,null,null,null,3,null,4,4,null,null,null,1,null,null,null,1,null,null,null,4]
["Feminino","-63",8,132317,1,"Vera Ferreira",2001,"Lisboa","Judo Clube Portugal",12,5,1,null,null,null,null,null,null,2,6,1,2]
["Feminino","-63",9,106115,1,"Maria Bernardo",2000,"Açores","Judo Clube da Ribeira Grande",11,2,null,null,5,null,null,null,null,null,null,null,null,null,null,null,null,null,null,null,null,6]
["Feminino","-63",10,112264,1,"Beatriz Barata",2000,"Lisboa","Escola de Judo Nuno Delgado",11,1,null,null,null,null,null,null,null,null,null,11]
["Feminino","-63",11,131923,1,"Marta Loureiro",2002,"Lisboa","Sport Lisboa e Benfica",11,3,null,null,null,null,null,null,null,null,null,null,null,null,null,null,null,null,null,6,null,null,4,1]
["Feminino","-63",12,144578,1,"Iris Conceição",2001,"Lisboa","Sport Lisboa e Benfica",10,1,null,null,null,null,null,null,null,10]
["Feminino","-63",13,116713,1,"Alice Pereira",2002,"Lisboa","Escola de Judo Nuno Delgado",10,2,null,null,null,null,null,null,null,null,null,null,null,null,null,null,null,null,null,5,null,null,5]
["Feminino","-63",14,120388,1,"Beatriz Lopes",2001,"Braga","Associação Desportiva e Cultural Manhente",9,3,null,null,null,null,null,null,null,null,1,null,null,4,null,4]
["Feminino","-63",15,115453,1,"Margarida Freitas",2001,"Madeira","Grupo Desportivo APEL",9,2,null,null,null,null,null,null,null,null,null,null,null,null,null,null,null,null,null,3,6]
["Feminino","-63",16,117025,1,"Alicia Frango",2000,"Algarve","Judo Clube Albufeira",8,3,null,null,null,null,null,5,null,1,null,2]
["Feminino","-63",17,136613,1,"Marta Neto",2000,"Leiria","Judo Clube Juncal",7,2,null,null,null,null,null,null,6,1]
["Feminino","-63",18,145112,1,"Maria Pires",2000,"Algarve","Academia Chushin Associação",5,4,null,null,null,null,null,1,null,2,null,null,1,null,1]
["Feminino","-63",19,123351,1,"Patrícia Nunes",2000,"Santarém","Clube de Judo de Riachos",5,2,null,null,null,null,null,null,4,1]
["Feminino","-63",20,146813,1,"Sara Branco",2001,"V.Castelo","Judo Clube Valença (Juvalença)",4,2,null,null,null,null,null,null,null,null,1,null,null,null,null,3]
["Feminino","-63",21,133461,{"$f":"COUNTIF(D:D,D26)","v":1},"Joana Bastos",2002,"Lisboa","Academia de Judo da Amadora",4,2,null,null,null,null,null,null,null,null,null,null,null,null,null,null,null,null,null,2,null,null,2]
["Feminino","-63",22,142634,1,"Mariana Santos",2000,"Porto","Escola Básica Dr.Costa Matos",3,1,null,null,null,3]
["Feminino","-63",23,146272,1,"Raquel Sequeira",2001,"Setúbal","Grupo de Amigos da Costa da Caparica",3,3,null,null,null,null,null,1,null,null,null,null,1,null,null,null,null,null,null,null,null,null,1]
["Feminino","-63",24,111685,1,"Ana Moura",2001,"C.Branco","Escola de Judo Ana Hormigo",3,1,null,null,null,null,null,null,null,null,null,null,3]
["Feminino","-63",25,132977,1,"Raquel Miranda",2000,"Braga","Associação Desportiva e Cultural Manhente",2,2,null,null,null,1,null,null,null,1]
["Feminino","-63",26,122313,1,"Beatriz Romana",2001,"Santarém","Ateneu Artístico Cartxense",2,2,null,null,null,null,null,null,1,1]
["Feminino","-63",27,133326,1,"Carolina Maia",2001,"I.Terceira","Clube de Judo Praia da Vitória",2,2,null,null,null,null,null,null,null,1,null,null,null,null,null,null,1]
["Feminino","-63",28,122377,1,"Maria Oliveira",2000,"Açores","Clube de Judo Angra do Heroismo",1,1,null,null,1]
["Feminino","-63",29,144855,1,"Ana Ribeiro",2000,"Aveiro","Associação 4Judo Project",1,1,null,null,null,null,null,null,null,null,null,null,null,1]
["Feminino","-63",30,139982,1,"Beatriz Gonçalves",2002,"Santarém","Sociedade Filarmonica Gualdim Pais",1,1,null,null,null,null,null,null,null,null,null,null,null,null,null,null,null,null,null,1]
["Feminino","-63",31,129891,1,"Beatriz Rocha",2001,"Madeira","Judo Clube Madeira",1,1,null,null,null,null,null,null,null,null,null,null,null,null,null,null,null,null,null,null,1]
["Feminino","-63",32,null,0,null,null,null,null,{"$f":"SUM(L37:AP37)","v":0},{"$f":"COUNT(L37:AQ37)","v":0}]
["Feminino","-63",33,null,0,null,null,null,null,0,0]
["Feminino","-63",34,null,0,null,null,null,null,0,0]

{"sheet":"-70","index":17,"n_rows":20,"n_cols":33,"rows_kept":20,"cut":false,"hidden":false,"merged":[]}
[null,null,null,null,null,null,null,null,"CADETES"]
[null,null,null,null,null,null,null,null,"-70KG ",null,null,"LISBOA","MADEIRA","AÇORES","NORTE","CENTRO-SUL","SUL","CENTRO","FPJ","PORTO","LISBOA","CASTELO BRANCO","COIMBRA","SETÚBAL","VIANA CASTELO","I.TERCEIRA","COIMBRA","SANTARÉM","LISBOA","MADEIRA","AÇORES","SETÚBAL","COIMBRA"]
[null,null,null,null,null,null,null,null,null,null,null,"2016-01-09","2016-01-16","2016-01-16","2016-01-16","2016-01-16","2016-01-16","2016-01-17","2016-01-31","2016-04-02","2016-04-09","2016-04-17","2016-04-30","2016-04-30","2016-06-18","2016-06-25","2016-06-26","2016-07-03","2016-10-22","2016-11-12","2016-11-19","2016-11-19","2016-12-17"]
["Género","Categoria",null,"LF",null,"NOME","Ano de Nascimento","Associação","CLUBE","Somatório de pontos","Número de provas","Camp. Zonal CADETES","Camp. Zonal CADETES","Camp. Zonal CADETES","Camp. Zonal CADETES","Camp. Zonal CADETES","Camp. Zonal CADETES","Camp. Zonal CADETES","Camp.Nac. Cadetes","OPEN CADETES","OPEN CADETES","OPEN MESTRE ANTONIO MORAIS","OPEN INT. CIDADE BARCELOS","OPEN MONTIJO CADETES","OPEN INT. CIDADE DE VALENÇA","TORNEIO DE SÃO JOÃO","TAÇA ANTONIO ALEIXO","OPEN INT. ADJ SANTARÉM","OPEN CADETES","OPEN CADETES","OPEN PONTA DELGADA","OPEN PRAGAL","OPEN CADETES"]
[]
["Feminino","-70",1,130959,{"$f":"COUNTIF(D:D,D6)","v":1},"Ana Oliveira",2000,"Lisboa","Oficinas de São José",{"$f":"SUM(L6:AP6)","v":28},{"$f":"COUNT(L6:AQ6)","v":8},1,null,null,null,null,null,null,6,1,4,4,null,null,null,null,null,1,7,null,null,4]
["Feminino","-70",2,144578,1,"Iris Conceição",2001,"Lisboa","Sport Lisboa e Benfica",14,5,4,null,null,null,null,null,null,null,6,1,1,2]
["Feminino","-70",3,120609,1,"Carolina Paiva",2002,"Lisboa","Colégio do Bom Sucesso",13,3,null,null,null,null,null,null,null,null,null,null,null,null,null,null,null,null,null,5,null,null,2,6]
["Feminino","-70",4,138904,1,"Mónica Amaral",2000,"Açores","Judo Clube São Jorge",7,2,null,null,3,null,null,null,null,4]
["Feminino","-70",5,118301,1,"Tânia Moreno",2001,"I.Terceira","Clube de Judo Praia da Vitória",6,2,null,null,5,null,null,null,null,1]
["Feminino","-70",6,118093,1,"Andreia Gonçalves",2000,"Braga","Associação Desportiva e Cultural Manhente",6,1,null,null,null,null,null,null,null,6]
["Feminino","-70",7,132317,1,"Vera Ferreira",2001,"Lisboa","Judo Clube Portugal",6,2,null,null,null,null,null,null,null,null,null,null,null,null,null,null,null,null,null,1,null,null,5]
["Feminino","-70",8,143674,1,"Gabriela Barbosa",2001,"Aveiro","Associação 4Judo Project",5,2,null,null,null,null,null,null,null,null,1,null,null,4]
["Feminino","-70",9,121382,1,"Beatriz Macedo",2000,"Braga","Associação Desportiva e Cultural Manhente",3,1,null,null,null,null,null,null,null,null,null,null,null,3]
["Feminino","-70",10,136207,1,"Catarina Silva",2001,"Santarém","Judo Clube Salvaterra de Magos",3,1,null,null,null,null,null,null,null,null,null,null,null,null,null,null,null,null,null,3]
["Feminino","-70",11,120386,1,"Jaqueline Alves",2001,"Braga","Associação Desportiva e Cultural Manhente",2,2,null,null,null,1,null,null,null,1]
["Feminino","-70",12,142856,1,"Miriam Freitas",2001,"Açores","Clube Judo Angra do Heroismo",1,1,null,null,1]
["Feminino","-70",13,134930,1,"Renata Fernandes",2001,"Aveiro","Sport Clube Beira Mar",1,1,null,null,null,null,null,null,null,null,null,null,null,null,null,null,null,1]
["Feminino","-70",14,124697,1,"Cláudia Gonçalves",2002,"Braga","Casa do Povo de Ronfe",1,1,null,null,null,null,null,null,null,null,null,null,null,null,null,null,null,null,null,null,null,null,null,1]
["Feminino","-70",15,null,0,null,null,null,null,0,0]

{"sheet":"+70","index":18,"n_rows":19,"n_cols":33,"rows_kept":19,"cut":false,"hidden":false,"merged":[]}
[null,null,null,null,null,null,null,null,"CADETES"]
[null,null,null,null,null,null,null,null,"+70KG ",null,null,"LISBOA","MADEIRA","AÇORES","NORTE","CENTRO-SUL","SUL","CENTRO","FPJ","PORTO","LISBOA","CASTELO BRANCO","COIMBRA","SETÚBAL","VIANA CASTELO","I.TERCEIRA","COIMBRA","SANTARÉM","LISBOA","MADEIRA","AÇORES","SETÚBAL","COIMBRA"]
[null,null,null,null,null,null,null,null,null,null,null,"2016-01-09","2016-01-16","2016-01-16","2016-01-16","2016-01-16","2016-01-16","2016-01-17","2016-01-31","2016-04-02","2016-04-09","2016-04-17","2016-04-30","2016-04-30","2016-06-18","2016-06-25","2016-06-26","2016-07-03","2016-10-22","2016-11-12","2016-11-19","2016-11-19","2016-12-17"]
["Género","Categoria",null,"LF",null,"NOME","Ano de Nascimento","Associação","CLUBE","Somatório de Pontos","Número de provas","Camp. Zonal CADETES","Camp. Zonal CADETES","Camp. Zonal CADETES","Camp. Zonal CADETES","Camp. Zonal CADETES","Camp. Zonal CADETES","Camp. Zonal CADETES","Camp.Nac. Cadetes","OPEN CADETES","OPEN CADETES","OPEN MESTRE ANTONIO MORAIS","OPEN INT. CIDADE BARCELOS","OPEN MONTIJO CADETES","OPEN INT. CIDADE DE VALENÇA","TORNEIO DE SÃO JOÃO","TAÇA ANTONIO ALEIXO","OPEN INT. ADJ SANTARÉM","OPEN CADETES","OPEN CADETES","OPEN PONTA DELGADA","OPEN PRAGAL","OPEN CADETES"]
[]
["Feminino","+70",1,106571,{"$f":"COUNTIF(D:D,D6)","v":1},"Aida Simão",2001,"Santarém","Sportiing Clube Tomar",{"$f":"SUM(L6:AP6)","v":22},{"$f":"COUNT(L6:AQ6)","v":4},null,null,null,null,null,null,4,null,null,5,null,null,null,null,null,null,null,6,null,null,null,7]
["Feminino","+70",2,134080,1,"Fátima Andrade",2001,"Madeira","Judo Clube Madeira",11,5,null,1,null,null,null,null,null,null,null,3,null,null,2,null,null,null,null,4,1]
["Feminino","+70",3,143674,1,"Gabriela Barbosa",2001,"Aveiro","Associação 4Judo Project",9,1,null,null,null,null,null,null,null,null,null,null,null,null,null,null,null,null,null,null,null,null,null,9]
["Feminino","+70",4,145426,1,"Íris Paulo",2001,"Coimbra","Casa do Povo de Miranda do Corvo",7,4,null,null,null,null,null,null,1,null,null,null,null,null,null,null,null,1,1,null,null,null,null,4]
["Feminino","+70",5,130959,1,"Ana Oliveira",2000,"Lisboa","Oficinas de São José",6,1,null,null,null,null,null,null,null,null,null,null,null,null,6]
["Feminino","+70",6,147497,1,"Maria Pereira",2002,"Lisboa","Sport Lisboa e Benfica",3,1,null,null,null,null,null,null,null,null,null,null,null,null,null,null,null,null,null,null,null,null,null,3]
["Feminino","+70",7,118093,1,"Andreia Gonçalves",2000,"Braga","Associação Desportiva e Cultural Manhente",1,1,null,null,null,1]
["Feminino","+70",8,121517,1,"Ana Massa",2001,"Açores","Clube Escolar Desp. Da Escola Básica 2 e 3 de Arrifes",1,1,null,null,1]
["Feminino","+70",9,131812,1,"Isabel Carvalho",2002,"Lisboa","Oficinas de São José",1,1,null,null,null,null,null,null,null,null,null,null,null,null,null,null,null,null,null,1]
["Feminino","+70",10,149418,1,"Ana Prestes",2002,"Coimbra","Escola de Judo de Coimbra",1,1,null,null,null,null,null,null,null,null,null,null,null,null,null,null,null,null,null,null,null,null,null,1]
["Feminino","+70",11,129242,1,"Beatriz Moreira",2002,"Coimbra","Associação Academica de Coimbra",1,1,null,null,null,null,null,null,null,null,null,null,null,null,null,null,null,null,null,null,null,null,null,1]
["Feminino","+70",12,null,0,null,null,null,null,0,0]
["Feminino","+70",13,null,0,null,null,null,null,0,0]
["Feminino","+70",14,null,0,null,null,null,null,0,0]

{"sheet":"-78","index":19,"n_rows":19,"n_cols":33,"rows_kept":19,"cut":false,"hidden":false,"merged":[]}
[null,null,null,null,null,null,null,null,"CADETES"]
[null,null,null,null,null,null,null,null,"+70KG ",null,null,"LISBOA","MADEIRA","AÇORES","NORTE","CENTRO-SUL","SUL","CENTRO","FPJ","PORTO","LISBOA","CASTELO BRANCO","COIMBRA","SETÚBAL","VIANA CASTELO","I.TERCEIRA","COIMBRA","SANTARÉM","LISBOA","MADEIRA","AÇORES","SETÚBAL","COIMBRA"]
[null,null,null,null,null,null,null,null,null,null,null,"2016-01-09","2016-01-16","2016-01-16","2016-01-16","2016-01-16","2016-01-16","2016-01-17","2016-01-31","2016-04-02","2016-04-09","2016-04-17","2016-04-30","2016-04-30","2016-06-18","2016-06-25","2016-06-26","2016-07-03","2016-10-22","2016-11-12","2016-11-19","2016-11-19","2016-12-17"]
["Género","Categoria",null,"LF",null,"NOME","Ano de Nascimento","Associação","CLUBE","Somatório de Pontos","Número de provas","Camp. Zonal CADETES","Camp. Zonal CADETES","Camp. Zonal CADETES","Camp. Zonal CADETES","Camp. Zonal CADETES","Camp. Zonal CADETES","Camp. Zonal CADETES","Camp.Nac. Cadetes","OPEN CADETES","OPEN CADETES","OPEN MESTRE ANTONIO MORAIS","OPEN INT. CIDADE BARCELOS","OPEN MONTIJO CADETES","OPEN INT. CIDADE DE VALENÇA","TORNEIO DE SÃO JOÃO","TAÇA ANTONIO ALEIXO","OPEN INT. ADJ SANTARÉM","OPEN CADETES","OPEN CADETES","OPEN PONTA DELGADA","OPEN PRAGAL","OPEN CADETES"]
[]
["Feminino","-78",1,134080,{"$f":"COUNTIF(D:D,D6)","v":1},"Fátima Andrade",2001,"Madeira","Judo Clube Madeira",{"$f":"SUM(L6:AP6)","v":4},{"$f":"COUNT(L6:AQ6)","v":1},null,null,null,null,null,null,null,4]
["Feminino","-78",2,145426,1,"Íris Paulo",2001,"Coimbra","Casa do Povo de Miranda do Corvo",3,1,null,null,null,null,null,null,null,3]
["Feminino","-78",3,null,0,null,null,null,null,0,0]
["Feminino","-78",4,null,0,null,null,null,null,0,0]
["Feminino","-78",5,null,0,null,null,null,null,0,0]
["Feminino","-78",6,null,0,null,null,null,null,0,0]
["Feminino","-78",7,null,0,null,null,null,null,0,0]
["Feminino","-78",8,null,0,null,null,null,null,0,0]
["Feminino","-78",9,null,0,null,null,null,null,0,0]
["Feminino","-78",10,null,0,null,null,null,null,0,0]
["Feminino","-78",11,null,0,null,null,null,null,0,0]
["Feminino","-78",12,null,0,null,null,null,null,0,0]
["Feminino","-78",13,null,0,null,null,null,null,0,0]
["Feminino","-78",14,null,0,null,null,null,null,0,0]

{"sheet":"+78","index":20,"n_rows":19,"n_cols":33,"rows_kept":19,"cut":false,"hidden":false,"merged":[]}
[null,null,null,null,null,null,null,null,"CADETES"]
[null,null,null,null,null,null,null,null,"+70KG ",null,null,"LISBOA","MADEIRA","AÇORES","NORTE","CENTRO-SUL","SUL","CENTRO","FPJ","PORTO","LISBOA","CASTELO BRANCO","COIMBRA","SETÚBAL","VIANA CASTELO","I.TERCEIRA","COIMBRA","SANTARÉM","LISBOA","MADEIRA","AÇORES","SETÚBAL","COIMBRA"]
[null,null,null,null,null,null,null,null,null,null,null,"2016-01-09","2016-01-16","2016-01-16","2016-01-16","2016-01-16","2016-01-16","2016-01-17","2016-01-31","2016-04-02","2016-04-09","2016-04-17","2016-04-30","2016-04-30","2016-06-18","2016-06-25","2016-06-26","2016-07-03","2016-10-22","2016-11-12","2016-11-19","2016-11-19","2016-12-17"]
["Género","Categoria",null,"LF",null,"NOME","Ano de Nascimento","Associação","CLUBE","Somatório de Pontos","Número de provas","Camp. Zonal CADETES","Camp. Zonal CADETES","Camp. Zonal CADETES","Camp. Zonal CADETES","Camp. Zonal CADETES","Camp. Zonal CADETES","Camp. Zonal CADETES","Camp.Nac. Cadetes","OPEN CADETES","OPEN CADETES","OPEN MESTRE ANTONIO MORAIS","OPEN INT. CIDADE BARCELOS","OPEN MONTIJO CADETES","OPEN INT. CIDADE DE VALENÇA","TORNEIO DE SÃO JOÃO","TAÇA ANTONIO ALEIXO","OPEN INT. ADJ SANTARÉM","OPEN CADETES","OPEN CADETES","OPEN PONTA DELGADA","OPEN PRAGAL","OPEN CADETES"]
[]
["Feminino","+78",1,106571,{"$f":"COUNTIF(D:D,D6)","v":1},"Aida Simão",2001,"Santarém","Sportiing Clube Tomar",{"$f":"SUM(L6:AR6)","v":3},{"$f":"COUNT(L6:AS6)","v":1},null,null,null,null,null,null,null,3]
["Feminino","+78",2,121517,1,"Ana Massa",2001,"Açores","Clube Escolar Desp. Da Escola Básica 2 e 3 de Arrifes",1,1,null,null,null,null,null,null,null,1]
["Feminino","+78",3,null,0,null,null,null,null,0,0]
["Feminino","+78",4,null,0,null,null,null,null,0,0]
["Feminino","+78",5,null,0,null,null,null,null,0,0]
["Feminino","+78",6,null,0,null,null,null,null,0,0]
["Feminino","+78",7,null,0,null,null,null,null,0,0]
["Feminino","+78",8,null,0,null,null,null,null,0,0]
["Feminino","+78",9,null,0,null,null,null,null,0,0]
["Feminino","+78",10,null,0,null,null,null,null,0,0]
["Feminino","+78",11,null,0,null,null,null,null,0,0]
["Feminino","+78",12,null,0,null,null,null,null,0,0]
["Feminino","+78",13,null,0,null,null,null,null,0,0]
["Feminino","+78",14,null,0,null,null,null,null,0,0]

{"sheet":"Parameters","index":21,"n_rows":29,"n_cols":14,"rows_kept":29,"cut":false,"hidden":false,"merged":[[3,3,3,7]]}
[null,null,null,null,null,null,null,null,null,"Version : ",1.1000000000000001]
[null,null,null,null,null,null,null,null,null,"Date :","2016-01-15",null,null,"Shape #1"]
[null,null,null,null,null,null,null,null,null,null,null,null,null,"Title"]
[]
[]
[null,null,null,null,null,null,null,null,null,null,null,null,null,"Shape #2"]
[null,null,null,null,null,null,null,null,null,null,null,null,null,"IJF"]
[]
[]
["Title","LCD de Cadetes"]
["Data ","2016-01-15",null,null,null,null,null,null,null,null,null,null,null,"Shape #3"]
[null,null,null,null,null,null,null,null,null,null,null,null,null,"CatM"]
[]
[]
[]
[]
[]
[null,null,null,null,null,null,null,null,null,null,null,null,null,"Shape #4"]
[null,null,null,null,null,null,null,null,null,null,null,null,null,"CatW"]
[]
[]
[]
[null,null,null,null,null,null,null,null,null,null,null,null,null,"Shape #5"]
[null,null,null,null,null,null,null,null,null,null,null,null,null,"Date"]
[]
[]
["Versions","Date","Author","Updates"]
[]
[1.1000000000000001,"2016-01-15","IR","LCD Template Grafico"]